Workbook

Sheet Design worksheet
H1: H | I1: H | O1: H | P1: H | Q1: H | R1: H | S1: H | T1: H | U1: H | V1: H | W1: H | X1: H | Y1: H | Z1: H | AA1: H
O2: x | P2: x | Q2: x | R2: x | S2: x | T2: x | U2: x | V2: x | W2: x | X2: x | Y2: x | Z2: x | AA2: x
D3: ADM1281 Hot Swap Designer
D4: =Variables!revtool -> 3
J6: Beta - Although the tool has been used and designs verified many times it is not fully tested.
J7: Final design should be independently verified for absolute acuracy.
C9: Please enter the data in the white cells: | H9: tolerance | I9: RSS?
A14: x | B14: Error combining options: | D14: Worst Case Stacked | O14: 0 | P14: Full Datasheet specs
A15: x | C15: RSS | D15: =IF(D14="Root Sum Squares",1,0) -> 0 | F15: =IF(D13=P14,0,IF(D13=P15,1,IF(D13=P16,2,3))) -> 3 | L15: 0 | M15: Worst Case Stacked | O15: 1 | P15: 4 sigma 25->85C
A16: x | L16: 1 | M16: Root Sum Squares | O16: 2 | P16: 6 sigma 25->85C
A17: x | O17: 3 | P17: 4 sigma -40->85C
C20: ADM p/n | D20: ADM1281
M21: Warning: Selecting these options provides tolerance and specification data that is not guaranteed by ADI. Please choose the first options to comply with ADM1281 datasheet specifications. Other options should be used at your own risk!
B22: 1 | C22: System Specifications
C23: Enter the system design specifications into this section.
C25: Vmin | D25: 10.2 | E25: V | J25: Minimum Supply voltage (lower tolerance). This is not UV spec!
C26: Vmax | D26: 13.2 | E26: V | J26: Maximum Supply voltage (higher tolerance). This is not OV spec!
C27: Vnom | D27: 12 | E27: V | J27: Nominal Supply Voltage
C28: Imax | D28: 60 | E28: A | J28: Maximum system load current
C29: I_CB | D29: 70 | E29: A | J29: Circuit breaker trip current. Usually some % higher than Imax.
C30: I powerup | D30: 0.05 | E30: A | J30: DC Current demanded by load during cap charge (Excluding Inrush). E.g. Bias currents etc.
C31: Rpowerup | D31: 10000 | E31: Ohm | F31: =D27/D31 -> 0.0012 | J31: Total parallel static resistance on Vout E.g. LEDs, Resistor strings etc.
C32: Ta Max | D32: 60 | E32: C | J32: Maximum Ambient temperature of system near FET locations
C33: Cload | D33: 3000 | E33: uF | J33: Total load capacitance
C34: C tolerance | D34: 10 | E34: % | J34: Tolerance on load capacitance
C35: max C | D35: =D33*(1+(D34/100)) -> 3300 | E35: uF | J35: Max capacitance
C36: Min C | D36: =D33*(1-(D34/100)) -> 2700 | E36: uF
B39: 2 | C39: UV Pin threshold
C42: Vuv | D42: 9.3 | E42: V | J42: Select desired undervoltage falling threshold
A43: x | C43: Vref | D43: =specs!D10 -> 1 | E43: V | H43: =P44 -> 1 | I43: Y | J43: Internal comparator reference | P43: V%
A44: x | C44: min | D44: =specs!C10 -> 0.99 | E44: V | P44: =MAX(Q44:Q45) -> 1 | Q44: =(D45-D43)/D43*100 -> 1
A45: x | C45: max | D45: =specs!E10 -> 1.01 | E45: V | Q45: =(D43-D44)/D43*100 -> 1
A46: x | C46: Ilkg | D46: =specs!E11/1000 -> 0.05 | E46: uA | H46: =P64 -> 0.02747311828 | I46: Y | J46: Max UV pin leakage
C48: Tolerance | D48: E96 (1%) | J48: Choose preferred resistor tolerance options
C49: R1 approx | D49: 51100 | E49: Ohm | J49: Enter any approximate value for the top resistor | P49: E96 (1%) | Q49: 96 | R49: 1 | S49: =IF($D$48=P49,1,0) -> 1 | U49: Active E | V49: active %
C50: R1 chosen | D50: =ROUND(10^(ROUND((LOG10(D49)-INT(LOG10(D49)))*U50,0)/U50),2)*10^(INT(LOG10(D49))) -> 51100 | E50: Ohm | J50: Calculated closest available top resistor | P50: E192 (0.5%) | Q50: 192 | R50: 0.5 | S50: =IF($D$48=P50,1,0) -> 0 | U50: =IF(S49=1,96,192) -> 96 | V50: =IF(S49=1,R49,IF(S50=1,R50,IF(S51=1,R51,IF(S52=1,R52,1)))) -> 1
A51: x | C51: R2 ideal | D51: =((D43*D50)/(D42-D43)) -> 6156.626506 | E51: Ohm | J51: Calculated ideal bottom resistor | P51: E192 (0.25%) | Q51: 192 | R51: 0.25 | S51: 0 | T51: 60000 | U51: =ROUND(10^(ROUND((LOG10(T51)-INT(LOG10(T51)))*U50,0)/U50),2)*10^(INT(LOG10(T51))) -> 60400
C52: R2 chosen | D52: =IF(D53="",ROUND(10^(ROUND((LOG10(D51)-INT(LOG10(D51)))*U50,0)/U50),2)*10^(INT(LOG10(D51))),D53) -> 6190 | E52: Ohm | J52: Calculated closest available bottom resistor | P52: E192 (0.1%) | Q52: 192 | R52: 0.1 | S52: 0
C53: R2 override? | E53: Ohm | J53: Enter a value here to overide the suggested value. Leave blank otherwise
C54: =IF(D53="","","WARNING: R2 Override in place. Value is not calculated. Delete override if not intended") -> 
C55: R tolerance | D55: =V50 -> 1 | E55: % | H55: =P58 -> 1.783906441 | I55: N | J55: Resistor Tolerance
C56: Expected design:
C57: UV min F | D57: =IF(RSS=1,I57,H57) -> 8.995050186 | E57: V | H57: =D58*(1-(($H$67/100))) -> 8.995050186 | I57: =D58*(1-(($H$71/100))) -> 8.99755797 | J57: Falling minimum threshold | P57: R%
C58: UV typ F | D58: =D43*((D50+D52)/D52) -> 9.255250404 | E58: V | J58: Falling typical threshold | P58: =D55*2*(D50/(D50+D52)) -> 1.783906441
C59: UV max F | D59: =IF(RSS=1,I59,H59) -> 9.515450622 | E59: V | H59: =D58*(1+((H67/100))) -> 9.515450622 | I59: =D58*(1+((H71/100))) -> 9.512942837 | J59: Falling maximum threshold
A60: x | C60: min | D60: =specs!C12 -> 40
C61: hyst typ | D61: =specs!D12 -> 60 | E61: mV | J61: Hysteresis | P61: I%
A62: x | C62: hyst max | D62: =specs!E12 -> 75
C64: UV min R | D64: =IF(RSS=1,I64,H64) -> 9.495877749 | E64: V | H64: =(D65-(D60/1000))*(1-(($H$67/100))) -> 9.495877749 | I64: =D65*(1-(($H$71/100))) -> 9.537411449 | J64: Rising minimum threshold | P64: =((D46*10^-6)/(D42/(D50+D52)))*(D50/(D50+D52))*100 -> 0.02747311828
C65: UV typ R | D65: =D58+(D61/1000*D58) -> 9.810565428 | E65: V | J65: Rising typical threshold
C66: UV max R | D66: =IF(RSS=1,I66,H66) -> 10.16348619 | E66: V | H66: =((D62/1000)+D65)*(1+((H67/100))) -> 10.16348619 | I66: =D65*(1+((H71/100))) -> 10.08371941 | J66: Rising maximum threshold
D67: =D65-D58 -> 0.5553150242 | H67: =SUM(H43:H56) -> 2.811379559 | I67: SUM
C68: Filter capacitor | D68: 100 | E68: nF | J68: Optional filter capacitor to filter transient UV conditions. Set to 0 if not required
C69: RC time constant | D69: =D68*0.001*(D52*D50)/(D50+D52) -> 552.1190435 | E69: us | J69: RC time constant of selected capacitor and UV divider
H71: =SQRT(H43^2+H46^2)+H55 -> 2.784283756 | I71: RSS
B72: 3 | C72: OV Pin threshold
C74: Vov | D74: 16.4 | E74: V | J74: Select desired overvoltage rising threshold
A75: x | C75: Vref | D75: =specs!D13 -> 1 | E75: V | H75: =P76 -> 1 | I75: Y | J75: Internal comparator reference | P75: V%
A76: x | C76: min | D76: =specs!C13 -> 0.99 | E76: V | P76: =MAX(Q76:Q77) -> 1 | Q76: =(D77-D75)/D75*100 -> 1
A77: x | C77: max | D77: =specs!E13 -> 1.01 | E77: V | Q77: =(D75-D76)/D75*100 -> 1
A78: x | C78: Ilkg | D78: =specs!E14/1000 -> 0.05 | E78: uA | H78: =P96 -> 0.01557926829 | I78: Y | J78: Max UV pin leakage
C80: Tolerance | D80: E96 (1%) | J80: Choose preferred resistor tolerance options
C81: R1 approx | D81: 51100 | E81: Ohm | J81: Enter any approximate value for the top resistor | P81: E96 (1%) | Q81: 96 | R81: 1 | S81: =IF($D$80=P81,1,0) -> 1 | U81: Active E | V81: active %
C82: R1 chosen | D82: =ROUND(10^(ROUND((LOG10(D81)-INT(LOG10(D81)))*U82,0)/U82),2)*10^(INT(LOG10(D81))) -> 51100 | E82: Ohm | J82: Calculated closest available top resistor | P82: E192 (0.5%) | Q82: 192 | R82: 0.5 | S82: =IF($D$80=P82,1,0) -> 0 | U82: =IF(S81=1,96,192) -> 96 | V82: =IF(S81=1,R81,IF(S82=1,R82,IF(S83=1,R83,IF(S84=1,R84,1)))) -> 1
A83: x | C83: R2 ideal | D83: =((D75*D82)/(D74-D75)) -> 3318.181818 | E83: Ohm | J83: Calculated ideal bottom resistor | P83: E192 (0.25%) | Q83: 192 | R83: 0.25 | S83: 0 | T83: 60000 | U83: =ROUND(10^(ROUND((LOG10(T83)-INT(LOG10(T83)))*U82,0)/U82),2)*10^(INT(LOG10(T83))) -> 60400
C84: R2 chosen | D84: =IF(D85="",ROUND(10^(ROUND((LOG10(D83)-INT(LOG10(D83)))*U82,0)/U82),2)*10^(INT(LOG10(D83))),D85) -> 3320 | E84: Ohm | J84: Calculated closest available bottom resistor | P84: E192 (0.1%) | Q84: 192 | R84: 0.1 | S84: 0
C85: R2 override? | E85: Ohm | J85: Enter a value here to overide the suggested value. Leave blank otherwise
C86: =IF(D85="","","WARNING: R2 Override in place. Value is not calculated. Delete override if not intended") -> 
C87: R tolerance | D87: =V82 -> 1 | E87: % | H87: =P90 -> 1.877986035 | I87: N | J87: Resistor Tolerance
C88: Expected design:
C89: OV min R | D89: =IF(RSS=1,I89,H89) -> 15.93073712 | E89: V | H89: =D90*(1-(($H$67/100))) -> 15.93073712 | I89: =D90*(1-(($H$71/100))) -> 15.93517855 | J89: Rising minimum threshold | P89: R%
C90: OV typ R | D90: =D75*((D82+D84)/D84) -> 16.39156627 | E90: V | J90: Rising typical threshold | P90: =D87*2*(D82/(D82+D84)) -> 1.877986035
C91: OV max R | D91: =IF(RSS=1,I91,H91) -> 16.86586694 | E91: V | H91: =D90*(1+((H99/100))) -> 16.86586694 | I91: =D90*(1+((H101/100))) -> 16.86333314 | J91: Rising maximum threshold
A92: x | D92: =specs!C15 -> 40
C94: hyst max | D94: =specs!D15 -> 60 | E94: mV | J94: Hysteresis | P94: I%
A95: x | D95: =specs!E15 -> 75
C96: OV min F | D96: =IF(RSS=1,I96,H96) -> 14.93601745 | E96: V | H96: =(D97-(D92/1000))*(1-(($H$67/100))) -> 14.93601745 | I96: =D97*(1-(($H$71/100))) -> 14.97906784 | J96: Falling minimum threshold | P96: =((D78*10^-6)/(D74/(D82+D84)))*(D82/(D82+D84))*100 -> 0.01557926829
C97: OV typ F | D97: =D90-(D94/1000*D90) -> 15.40807229 | E97: V | J97: Falling typical threshold
C98: OV max F | D98: =IF(RSS=1,I98,H98) -> 15.9310851 | E98: V | H98: =((D95/1000)+D97)*(1+((H99/100))) -> 15.9310851 | I98: =D97*(1+((H101/100))) -> 15.85153316 | J98: Falling maximum threshold
H99: =SUM(H75:H88) -> 2.893565303 | I99: SUM
C100: Filter capacitor | D100: 10 | E100: nF | J100: Optional filter capacitor to filter transient OV conditions. Set to 0 if not required
C101: RC time constant | D101: =D100*0.001*(D84*D82)/(D82+D84) -> 31.17456817 | E101: us | H101: =SQRT(H75^2+H78^2)+H87 -> 2.878107384 | I101: RSS | J101: RC time constant of selected capacitor and OV divider
B104: 4 | C104: Current Limit Settings
C105: Sense Voltage Drop Requirements
C106: Please set this to 20mV to begin with. Should the resulting current limit need to be tweaked then adjust vsense as required.
C108: Target vsense | D108: 18.25 | E108: mV | J108: Desired max sense voltage drop for circuit breaker. 20mV default will disable divider on ISET and use internal ref. ISET pulled up to VCAP | S108: 20
C109: Calculated | D109: =IF(D108=20,IF(D124="",20,((D112*(D136/(D136+D134)))/D148)*1000),((D112*(D136/(D136+D134)))/D148)*1000) -> 18.26207809 | E109: mV | J109: Recommended 15-25mV range. Can be adjusted from 5 to 25mV but better accuracy with higher limit
C110: =IF(OR(D168<5,D169>25),"Warning - Outside range @","") ->  | D110: =IF(D168<5,D168,IF(D169>25,D169,"")) ->  | E110: =IF(OR(D168<5,D169>25),"mV","") ->  | S110: =5*(1+H147/100) -> 5.190322941 | T110: =25*(1-H147/100) -> 24.04838529
A111: x
A112: x | C112: Vcap | D112: =specs!D18 -> 2.7 | E112: V | H112: =P112 -> 0.7407407407 | I112: Y | J112: Vcap reference nominal | P112: =IF(D109=20,0,MAX(P113:P114)) -> 0.7407407407
A113: x | C113: VCAP min | D113: =specs!C18 -> 2.68 | E113: V | J113: min | P113: =(D112-D113)/D112*100 -> 0.7407407407 | Q113: %
A114: x | C114: VCAP max | D114: =specs!E18 -> 2.72 | E114: V | J114: max | P114: =(D114-D112)/D112*100 -> 0.7407407407 | Q114: %
A115: x | C115: Vreg_vos | D115: =specs!E21 -> 0.25 | E115: mV | H115: =IF(D109=20,P116,P115) -> 1.36895702 | I115: NB: this figure is only a % for max regulation… flb and vcb need to be recalucated from the fixed offsets. | P115: =D115/D109*100 -> 1.36895702 | Q115: %
A116: x | C116: Vref_int_vos | D116: 0 | E116: mV | P116: =(D116+D115)/D109*100 -> 1.36895702 | Q116: %
A117: x
C118: =IF(D108=20,"You do not need to adjust the following as 20mV has been selected and internal reference used… move to next section","Please select ISET resistors…") -> Please select ISET resistors… | M118: Parallel Calculator
C119: Tolerance | D119: E96 (1%) | J119: Choose preferred resistor tolerance options | M119: R1 | N119: 88700
C120: R1 approx | D120: 100000 | E120: Ohm | J120: Enter any approximate value for the top resistor | M120: R2 | N120: 270000 | P120: E96 (1%) | Q120: 96 | R120: 1 | S120: =IF($D$119=P120,1,0) -> 1 | U120: Active E | V120: active %
C121: R1 chosen | D121: =IF(D108=20,IF(D124="",10000,ROUND(10^(ROUND((LOG10(D120)-INT(LOG10(D120)))*U121,0)/U121),2)*10^(INT(LOG10(D120)))),ROUND(10^(ROUND((LOG10(D120)-INT(LOG10(D120)))*U121,0)/U121),2)*10^(INT(LOG10(D120)))) -> 100000 | E121: Ohm | J121: =IF(D108=20,"Default 10K ISET pullup selected to enable internal 20mV reference","Calculated closest available top resistor") -> Calculated closest available top resistor | M121: // | N121: =(N119*N120)/(N119+N120) -> 66766.0998 | P121: E192 (0.5%) | Q121: 192 | R121: 0.5 | S121: =IF($D$119=P121,1,0) -> 0 | U121: =IF(S120=1,96,192) -> 96 | V121: =IF(S120=1,R120,IF(S121=1,R121,IF(S122=1,R122,IF(S123=1,R123,1)))) -> 1
A122: x | C122: R2 ideal | D122: =(((D108/20)*D121)/(D112-(D108/20))) -> 51048.95105 | E122: Ohm | J122: Calculated ideal bottom resistor | P122: E192 (0.25%) | Q122: 192 | R122: 0.25 | S122: 0 | T122: 60000 | U122: =ROUND(10^(ROUND((LOG10(T122)-INT(LOG10(T122)))*U121,0)/U121),2)*10^(INT(LOG10(T122))) -> 60400
C123: R2 chosen | D123: =IF(D124="",IF(D108=20,1000000000,ROUND(10^(ROUND((LOG10(D122)-INT(LOG10(D122)))*U121,0)/U121),2)*10^(INT(LOG10(D122)))),D124) -> 51100 | E123: Ohm | J123: =IF(D108=20,"Bottom resistor should not be populated","Calculated closest available bottom resistor") -> Calculated closest available bottom resistor | P123: E192 (0.1%) | Q123: 192 | R123: 0.1 | S123: 0
C124: R2 override? | E124: Ohm | J124: Enter a value here to overide the suggested value. Leave blank otherwise
C125: =IF(D124="","","WARNING: R2 Override in place. Value is not calculated. Delete override if not intended") -> 
C126: R tolerance | D126: =V121 -> 1 | E126: % | J126: Resistor Tolerance
C127: String current | D127: =IF(D108=20,specs!E19*0.001,1000000*D114/(D121+D123)) -> 18.00132363 | E127: uA | J127: VCAP loading current
C128: Total VCAP current | D128: =D127+D324+D579 -> 67.95928274 | E128: uA
C129: =IF(IVCAP>100,"Warning: VCAP current is limited in spec to 100µA. Check other loading on VCAP so as not to exceed this","") -> 
A131: x
A132: x
A133: x
A134: x | C134: Riset1 | D134: =D121 -> 100000 | E134: Ohms | J134: Top resistor
A135: x | C135: Riset2 ideal | D135: =(((D108/20)*D134)/(D112-(D108/20))) -> 51048.95105 | F135: =D207 -> 64.75023876 | J135: ideal bottom resistor
A136: x | C136: Riset2 | D136: =D123 -> 51100 | E136: Ohms | F136: =D224 -> 69.52831238 | J136: Bottom Resistor - realistic
A137: x | C137: =IF(D109<S110,"WARNING: Increase Riset2, Sense voltage is < 5mV with tolerance",IF(D109>T110,"WARNING: Reduce Riset2, Sense voltage is > 25mV with tolerance","")) -> 
A138: x | C138: I string | D138: =D113/(D134+D136)*1000000 -> 17.73659828 | E138: uA | F138: =D208 -> 75.03112079 | J138: Current in resistor string
A139: x | C139: iset lgk | D139: =specs!E19/1000 -> 0.1 | E139: uA | P139: =IF(D109=20,0,(D139/D138)*(D134/(D134+D136))*100) -> 0.3731343284 | Q139: % due to lkg
A140: x | H140: =P139 -> 0.3731343284 | I140: Y | J140: % error due to pin leakage (with specified ISET max input current of 100nA) | P140: =IF(D109=20,0,(D141*2)*(D134/(D134+D136))) -> 1.323626737 | Q140: % due to tolerance
A141: x | C141: resistor error | D141: =D126 -> 1 | E141: % | H141: =P140 -> 1.323626737 | I141: N | J141: Risetx resistor tolerance
A142: x
A143: x | C143: R1min | D143: =D134*(1-((D139)/100)) -> 99900 | E143: Ohms | J143: Add tolerance | R143: =D112 -> 2.7 | S143: =R143*(R145/(R144+R145)) -> 0.9131039047
A144: x | C144: R1max | D144: =D134*(1+(D141/100)) -> 101000 | E144: Ohms | R144: =D134 -> 100000
A145: x | C145: R2min | D145: =D136*(1-(D141/100)) -> 50589 | E145: Ohms | R145: =D136 -> 51100
A146: x | C146: R2max | D146: =D136*(1+((D139)/100)) -> 51151.1 | E146: Ohms
A147: x | H147: =SUM(H112:H146) -> 3.806458826 | I147: SUM | R147: =D113 -> 2.68 | S147: =R147*(R149/(R148+R149)) -> 0.9075402165 | T147: =D114 -> 2.72 | U147: =T147*(T149/(T148+T149)) -> 0.9210855929
A148: x | C148: CS gain | D148: 50 | E148: V/V | H148: =SQRT(H112^2+H115^2+H140^2)+H141 -> 2.924242054 | I148: RSS | J148: Current sense gain | R148: =D143 -> 99900 | T148: =R148 -> 99900
A149: x | C149: cs gain error | D149: 0.75 | E149: % | H149: =H147-H115 -> 2.437501806 | J149: error | R149: =D146 -> 51151.1 | S149: =((S147-S143)/S143)*100 -> -0.6093159987 | T149: =R149 -> 51151.1 | U149: =((U147-S143)/S143)*100 -> 0.8741270461
A150: x | S150: 1.632
A151: x | C151: Min | D151: =D155*D148/1000 -> 0.8783469805 | E151: V | H151: =D152*(1-H147/100) -> 0.8783469805 | I151: =D152*(1-H148/100) -> 0.8864025363 | J151: Worst case ISET
A152: x | C152: Typ | D152: =(D109*50/1000) -> 0.9131039047
A153: x | C153: Max | D153: =D156*D148/1000 -> 0.9478608289 | E153: V | H153: =D152*(1+H147/100) -> 0.9478608289 | I153: =D152*(1+H148/100) -> 0.9398052731 | R153: =R147 -> 2.68 | S153: =R153*(R155/(R154+R155)) -> 0.8943823101 | T153: =T147 -> 2.72 | U153: =T153*(T155/(T154+T155)) -> 0.9077312998
A154: x | R154: =D144 -> 101000 | T154: =R154 -> 101000
A155: x | C155: Vsense min | D155: =IF(RSS=1,I155,H155) -> 17.56693961 | E155: mV | H155: =D109*(1-(H147/100)) -> 17.56693961 | I155: =D109*(1-(H148/100)) -> 17.72805073 | J155: Worst case sense voltage thresholds | R155: =D145 -> 50589 | S155: =((S153-S143)/S143)*100 -> -2.050324672 | T155: =R155 -> 50589 | U155: =((U153-S143)/S143)*100 -> -0.5883892191
A156: x | C156: Vsense max | D156: =IF(RSS=1,I156,H156) -> 18.95721658 | E156: mV | H156: =D109*(1+(H147/100)) -> 18.95721658 | I156: =D109*(1+(H148/100)) -> 18.79610546
A157: x
A158: x | C158: Vcbosmin | D158: =specs!C23 -> 0.5 | E158: mV
A159: x | C159: typ | D159: =specs!D23 -> 0.88 | E159: mV
A160: x | C160: max | D160: =specs!E23 -> 1.12 | E160: mV
A161: x
A162: x | C162: Vreg | D162: =D155 -> 17.56693961 | E162: mV
A163: x | C163: Vreg tolerance | D163: 0 | E163: mV | J163: This is now included in above specs as %
A164: x | C164: Vos min | D164: =D158 -> 0.5 | E164: mV | J164: Circuit breaker offset min spec
A165: x | C165: Vos typ | D165: =D159 -> 0.88 | E165: mV
A166: x | C166: Vos max | D166: =D160 -> 1.12 | E166: mV | J166: Circuit breaker offset max spec
A167: x | C167: Vos sigma | D167: 0.05 | E167: mV | J167: unused - 2.60
A168: x | C168: Vreg min | D168: =D162 -> 17.56693961 | E168: mV
A169: x | C169: Vreg max | D169: =D156 -> 18.95721658 | E169: mV | J169: Maximum regulation limit - min,max (all errors) | M169: =D109 -> 18.26207809
A170: x | C170: Vcb min | D170: =D168-D166 -> 16.44693961 | E170: mV | J170: Minimum circuit breaker limit - min,max | M170: =D109-F166 -> 18.26207809
A171: x | C171: Vcb max | D171: =D169-D164 -> 18.45721658 | E171: mV | J171: Maximum circuit breaker limit - min,max | M171: =D109-F164 -> 18.26207809
A172: x
A173: x | C173: Vreg typ | D173: =D109 -> 18.26207809 | E173: mV
A174: x | C174: Vcb typ | D174: =D173-D165 -> 17.38207809 | E174: mV
A175: x
A176: x
A177: x
C178: Sense R | D178: =((D170/1000)/D29)*1000 -> 0.2349562802 | E178: mR | J178: Ideal sense resistor value to achieve trip current set above
C179: imbalance | D179: 10 | E179: % | J179: margin for resistor current imbalance used for resistor power rating only
C180: Now select actual resistors to achive close to target | F180: Power | X180: parallel calculator
C181: Rsense1 | D181: 0.5 | E181: mR | F181: =IF(D181="","",((D171/1000)^2)/(D181/1000)*(1+(D179/100))) -> 0.7494714563 | G181: W | J181: Sense Resistor value, power dissipation also shown | N181: =IF(D181="",,1) -> 1 | W181: R1 | X181: =D181 -> 0.5 | Z181: =X181 -> 0.5
C182: Rsense2 | D182: 0.5 | E182: mR | F182: =IF(D182="","",((D171/1000)^2)/(D182/1000)*(1+(D179/100))) -> 0.7494714563 | G182: W | J182: Sense Resistor value (leave blank if not used), power dissipation also shown | N182: =IF(D182="",,1) -> 1 | W182: R2 | X182: =D182 -> 0.5 | Y182: R1//R2= | Z182: =(X181*X182)/(X181+X182) -> 0.25
C183: Rsense3 | E183: mR | F183: =IF(D183="","",((D171/1000)^2)/(D183/1000)*(1+(D179/100))) ->  | G183: W | J183: Sense Resistor value (leave blank if not used), power dissipation also shown | N183: =IF(D183="",,1) -> 0 | W183: R3 | X183: =D183 -> 0 | Y183: R1//R2//R3= | Z183: =(Z182*X183)/(Z182+X183) -> 0
C184: Rsense4 | E184: mR | F184: =IF(D184="","",((D171/1000)^2)/(D184/1000)*(1+(D179/100))) ->  | G184: W | J184: Sense Resistor value (leave blank if not used), power dissipation also shown | N184: =IF(D184="",,1) -> 0 | W184: R4 | X184: =D184 -> 0 | Y184: R1//R2//R3//R4= | Z184: =(Z183*X184)/(Z183+X184) -> 
A185: x
C186: No.SenseR | D186: =SUM(N181:N184) -> 2 | J186: No of parallel sense resistors required(up to 4). If more required then please group some resistor as parallel
A187: x
F188: Power
C189: SenseR total | D189: =IF(D184="",IF(D183="",IF(D182="",IF(D181="","",Z181),Z182),Z183),Z184) -> 0.25 | E189: mR | F189: =((D171/1000)^2)/(D189/1000) -> 1.362675375 | G189: W | J189: Total Sense Resistor value, power dissipation also shown(worst case)
C190: tolerance | D190: 1 | E190: % | H190: =D190 -> 1 | I190: N
A191: x | O191: rmax | P191: =D193*(1+(D194/100)) -> 10.1
C192: Averaging resistors: | O192: rmin | P192: =D193*(1-(D194/100)) -> 9.9
C193: Value | D193: 10 | E193: Ω | J193: averaging resistors (10 ohm recommended)
C194: tolerance | D194: 1 | E194: % | H194: =P194 -> 0.1642748424 | I194: N | O194: r tol | P194: =((P191*D198*0.000001)-(P192*D198*0.000001))/(D109/1000)*100 -> 0.1642748424
C195: no required | D195: =IF(D186=1,0,D186*2) -> 4 | J195: number required
A197: x | C197: Isen Delta | D197: =specs!E17 -> 8 | E197: uA | H197: =P197 -> 0.4380662463 | I197: =P198 -> 0.4380662463 | J197: max Leakage imbalance into Sense pins | O197: isense delta | P197: =(D197*0.000001*D193)/(D109/1000)*100 -> 0.4380662463
A198: x | C198: Isense | D198: =specs!E16 -> 150 | E198: uA | J198: Max leakage into sense pins | P198: =(D197*0.000001*D193)/(D109/1000)*100 -> 0.4380662463
A199: x | H199: =SUM(H190:H198) -> 1.602341089 | I199: =I197+H194+H190 -> 1.602341089
A200: x
A201: x
A202: x | C202: min | D202: =IF(RSS=1,I202,H202) -> 0.2459941473 | H202: =D189*(1-H199/100) -> 0.2459941473 | I202: =D189*(1-I199/100) -> 0.2459941473 | J202: equiv min sense r value
A203: x | C203: max | D203: =IF(RSS=1,I203,H203) -> 0.2540058527 | H203: =D189*(1+H199/100) -> 0.2540058527 | I203: =D189*(1+I199/100) -> 0.2540058527 | J203: equiv max
C205: Worst case current thresholds | F205: Vsense
C207: Min DC | D207: =(F207/1000)/(D203/1000) -> 64.75023876 | E207: A | F207: =D170 -> 16.44693961 | G207: mV | H207: =(F208-F207)/2 -> 1.005138483 | J207: This is the minimum DC current that would cause the cct breaker to trip
C208: Max DC | D208: =(F208/1000)/(D202/1000) -> 75.03112079 | E208: A | F208: =D171 -> 18.45721658 | G208: mV | H208: =F208-H207 -> 17.45207809 | J208: This is the maximum DC current that would cause the cct breaker to trip
C209: Min Reg | D209: =(F209/1000)/(D203/1000) -> 69.15958598 | E209: A | F209: =D168 -> 17.56693961 | G209: mV | H209: =(H207/H208)*100 -> 5.759420042 | J209: Minimum regulation current
C210: Max Reg | D210: =(F210/1000)/(D202/1000) -> 77.06368947 | E210: A | F210: =D169 -> 18.95721658 | G210: mV | J210: This is the maximum peak current when in regulation (only present during TIMER cycle)
A212: x | C212: Min DC | D212: =(F212/1000)/(D202/1000) -> 0 | E212: A | F212: =F170 -> 0 | G212: mV | J212: This is the minimum DC current that would cause the cct breaker to trip
A213: x | C213: Max DC | D213: =(F213/1000)/(D202/1000) -> 0 | E213: A | F213: =F171 -> 0 | G213: mV | J213: This is the maximum DC current that would cause the cct breaker to trip
A214: x | C214: Min Pk | D214: =(F214/1000)/(D202/1000) -> 0 | E214: A | F214: =F168 -> 0 | G214: mV | J214: Min peak in regulation
A215: x | C215: Max Pk | D215: =(F215/1000)/(D202/1000) -> 0 | E215: A | F215: =F169 -> 0 | G215: mV | J215: This is the maximum peak current when in regulation (only present during TIMER cycle)
A216: x
A217: x | C217: Worst case figures from above data | J217: Select worst case from each of the above for worst case design
A218: x | C218: Min DC | E218: A | G218: mV | J218: This is the minimum DC current that would cause the cct breaker to trip
A219: x | C219: Max DC | E219: A | G219: mV | J219: This is the maximum DC current that would cause the cct breaker to trip
A220: x | C220: Min pk | E220: A | G220: mV | J220: Min peak in regulation
A221: x | C221: Max Pk | E221: A | G221: mV | J221: This is the maximum peak current when in regulation (only present during TIMER cycle)
C223: Nominal Figures
C224: I CB | D224: =(F224/1000)/(D189/1000) -> 69.52831238 | E224: A | F224: =D174 -> 17.38207809 | G224: mV | J224: Circuit breaker trip point
C225: I Reg | D225: =(F225/1000)/(D189/1000) -> 73.04831238 | E225: A | F225: =M171 -> 18.26207809 | G225: mV | J225: Regulation current
C227: % tolerance on Vcb | E227: =((D208-D207)/2)/D224*100 -> 7.393306176 | F227: % | J227: Circuit breaker threshold
C228: % tolerance on Vreg | E228: =((D210-D209)/2)/D225*100 -> 5.410188979 | F228: % | J228: Current regulation point
B230: 5 | C230: Fet Selection
... 467 more rows

Sheet FET SOA CP
A6: Section 8:
A7: 1 | B7: Paste a snapshot of the preferred MOSFET SOA diagram in white box. Right click image and send to back.
A8: 2 | B8: Please ensure you are using the correct SOA diagram, this tool does not automatically present the correct SOA… you will need to copy and paste it in yourself.
A9: 3 | B9: Using the red vertical line provided as an aid, determine the values for current on each intersection point of Voltage and time in the table below.
A10: 4 | B10: Section 9 and 10 require SOA checks. As you get to each section in the design worksheet you will be redirected back to this page. Use the red and blue lines to determine intersect times.
A11: 5 | B11: Complete this table first and then click link below…
B13: Time (µs) | C13: Voltage | D13: Current | E13: Power
B14: 100 | C14: ='Design worksheet'!$D$26 -> 13.2 | D14: 230 | E14: =D14*C14 -> 3036
B15: 300 | C15: ='Design worksheet'!$D$26 -> 13.2 | D15: 130 | E15: =D15*C15 -> 1716
B16: 400 | C16: ='Design worksheet'!$D$26 -> 13.2 | D16: 105 | E16: 1386
B17: 1000 | C17: ='Design worksheet'!$D$26 -> 13.2 | D17: 60 | E17: 792
B18: 100000 | C18: ='Design worksheet'!$D$26 -> 13.2 | D18: 7 | E18: 92.4
A21: When table complete, click here to return to worksheet
A25: Section 6: | B25: Plot V and I: | C25: ='Design worksheet'!D26 -> 13.2 | D25: ='Design worksheet'!D368 -> 30.47772715
B26: 7000 | C26: µs
A27: After time entered, click to return to worksheet. Check for Warnings!
A30: Section 12: | B30: Plot Both points below and enter SOA time:
B31: Plot V and I: | C31: ='Design worksheet'!D627 -> 10.56 | D31: ='Design worksheet'!D630 -> 7.624230338
B32: 500000 | C32: µs
B34: Plot V and I: | C34: =C31 -> 10.56 | D34: ='Design worksheet'!D635 -> 2.925679944
B35: 1000000 | C35: µs
A37: After time entered, click to return to worksheet. Check for Warnings!

Sheet Sch & BOM
B7: DISCLAIMER:
B8: This design tool is the property of Analog Devices. It is a design aid for use with the ADM127x family of hotswap controllers. It may not be copied, transferred, or used for other purposes without express written approval of Analog Devices Inc. Although ADI has made substantial effort to ensure this spreadsheet software provides accurate results, the complexity, estimates used, component tolerences, PCB thermal variances, and nonlinearities preclude absolute accuracy guarantees. It is provided "AS IS" and all responsibility for the actual design performance and verification is born by the user. All designs should be verified independently and fully tested prior to manufacture. ADI disclaims any liability for damages of any kind resulting from the use of this spreadsheet software.
B11: Specs: | D11: Vmin | E11: ='Design worksheet'!D25 -> 10.2 | F11: V
D12: Vmax | E12: ='Design worksheet'!D26 -> 13.2 | F12: V
D13: Vnom | E13: ='Design worksheet'!D27 -> 12 | F13: V
D14: Circuit Breaker | E14: ='Design worksheet'!D224 -> 69.52831238 | F14: A
D15: I powerup | E15: ='Design worksheet'!D30 -> 0.05 | F15: A
D16: Rpowerup | E16: ='Design worksheet'!D31 -> 10000 | F16: Ohm
D17: Ta Max | E17: ='Design worksheet'!D32 -> 60 | F17: C
D18: Cload | E18: ='Design worksheet'!D33 -> 3000 | F18: uF
B20: Please ensure the design worksheet has been completed, without errors, before using the Bill of Materials listed below!
B21: Schematic shown beside and below BOM for convenience
B22: Ref Des | D22: Value* | E22: Qty | F22: Min. PD (mW) | G22: Grade | H22: Comments
B24: Ruvt | D24: ='Design worksheet'!D50/1000 -> 51.1 | E24: =IF(D24="DNP","",1) -> 1 | F24: =25/D24 -> 0.4892367906 | G24: ='Design worksheet'!D48 -> E96 (1%)
B25: Ruvb | D25: ='Design worksheet'!D52/1000 -> 6.19 | E25: =IF(D25="DNP","",1) -> 1 | F25: =2/D25 -> 0.3231017771 | G25: =G24 -> E96 (1%)
B26: Cuv | D26: =IF('Design worksheet'!D68 = 0,"DNP",'Design worksheet'!D68) -> 100 | E26: 1 | G26: Any | H26: UV filtering capacitor. MLCC. User select, default 100nF. 25V+
B27: Rovt | D27: ='Design worksheet'!D82/1000 -> 51.1 | E27: 1 | F27: =25/D27 -> 0.4892367906 | G27: ='Design worksheet'!D80 -> E96 (1%)
B28: Rovb | D28: ='Design worksheet'!D84/1000 -> 3.32 | E28: 1 | F28: =2/D28 -> 0.6024096386 | G28: =G27 -> E96 (1%)
B29: Cov | D29: =IF('Design worksheet'!D100 = 0,"DNP",'Design worksheet'!D100) -> 10 | E29: 1 | G29: Any | H29: OV filtering capacitor. MLCC. User select, default 100nF.25V+
B30: Cvcap | D30: 1 | E30: 1 | G30: Any | H30: Datasheet specified
B31: Risett | D31: ='Design worksheet'!D121/1000 -> 100 | E31: 1 | F31: =2.8/D31 -> 0.028 | G31: ='Design worksheet'!D119 -> E96 (1%)
B32: Risetb | D32: =IF('Design worksheet'!D123/1000 = 1000000,"DNP",'Design worksheet'!D123/1000) -> 51.1 | E32: 1 | F32: =IF('Design worksheet'!D123/1000 = 1000000,"",2.8/D32) -> 0.05479452055 | G32: =G31 -> E96 (1%)
B33: Rpsett | D33: ='Design worksheet'!D318/1000 -> 100 | E33: 1 | F33: =2.8/D33 -> 0.028 | G33: ='Design worksheet'!D316 -> E96 (1%)
B34: Rpsetb | D34: ='Design worksheet'!D320/1000 -> 11.5 | E34: 1 | F34: 0.2434782609 | G34: =G33 -> E96 (1%)
B35: Ristt | D35: ='Design worksheet'!D572/1000 -> 100 | E35: 1 | F35: 0.028 | G35: ='Design worksheet'!D570 -> E96 (1%)
B36: Ristb | D36: =IF('Design worksheet'!D575="DNP","DNP",'Design worksheet'!D575/1000) -> 5.62 | E36: 1 | F36: 0.4982206406 | G36: =G35 -> E96 (1%)
B37: Ctimer | D37: =TMR -> 10 | E37: 1 | G37: ='Design worksheet'!D526/100 -> 0.1 | H37: MLCC 25V or higher rating
B38: Rvcc | D38: 0 | E38: 1 | F38: =D38*0.000036 -> 0 | G38: Any | H38: This RC be used in cases where Vin drops at high load fault conditions. This filter can keep Vcc high. 10 Ohms maximum Rvcc.
B39: Cvcc | D39: DNP | G39: Any
B40: Rs1 | D40: =IF(RSENSE=0,"NR",RSENSE) -> 0.5 | E40: =IF(D40="NR","",1) -> 1 | F40: =IF(D40="NR","",'Design worksheet'!F181*3000) -> 2248.414369 | G40: =IF(E40="","",'Design worksheet'!$D$190/100) -> 0.01 | H40: =IF(E40="","","Power already derated by 3. Route sense traces carefully") -> Power already derated by 3. Route sense traces carefully
B41: Rs2 | D41: =IF('Design worksheet'!D182=0,"NR",'Design worksheet'!D182) -> 0.5 | E41: =IF(D41="NR","",1) -> 1 | F41: =IF(D41="NR","",'Design worksheet'!F182*3000) -> 2248.414369 | G41: =IF(E41="","",'Design worksheet'!$D$190/100) -> 0.01 | H41: Power already derated by 3. Route sense traces carefully
B42: Rs3 | D42: =IF('Design worksheet'!D183=0,"NR",'Design worksheet'!D183) -> NR | F42: =IF(D42="NR","",'Design worksheet'!F183*3000) ->  | G42: =IF(E42="","",'Design worksheet'!$D$190/100) -> 
B43: Rs4 | D43: =IF('Design worksheet'!D184=0,"NR",'Design worksheet'!D184) -> NR | F43: =IF(D43="NR","",'Design worksheet'!F184*3000) ->  | G43: =IF(E43="","",'Design worksheet'!$D$190/100) ->  | H43: =IF(E43="","","Power already derated by 3. Route sense traces carefully") -> 
B44: Rsp1,Rsm1 | D44: =IF(D40="NR","NR",RSENSE_AVG) -> 10 | E44: =IF(D44="NR","",2) -> 2 | F44: =IF(D44="NR","",100) -> 100 | G44: =IF(E44="","","Any") -> Any | H44: =IF(E44="","","Sense voltage averaging resistors for accuracy") -> Sense voltage averaging resistors for accuracy
B45: Rsp2,Rsm2 | D45: =IF(D41="NR","NR",RSENSE_AVG) -> 10 | E45: =IF(D45="NR","",2) -> 2 | F45: =IF(D45="NR","",100) -> 100 | G45: =IF(E45="","","Any") -> Any | H45: =IF(E45="","","Sense voltage averaging resistors for accuracy") -> Sense voltage averaging resistors for accuracy
B46: Rsp3,Rsm3 | D46: =IF(D42="NR","NR",RSENSE_AVG) -> NR
B47: Rsp4,Rsm4 | D47: =IF(D43="NR","NR",RSENSE_AVG) -> NR
B48: Q1 - | C48: ='Design worksheet'!E244 -> 3 | D48: =FET -> PSMNR51 | E48: ='Design worksheet'!E244 -> 3 | F48: ='Design worksheet'!E250*1000 -> 603.9884307 | H48: Main MOSFET. User must ensure Rthja chosen (Layout/airflow etc)
B49: Rg1 - | C49: ='Design worksheet'!E244 -> 3 | D49: 10 | E49: =E48 -> 3 | F49: 100 | G49: Any | H49: Required to prevent gate oscillations when using multiple FETs.
B50: Rgate | D50: 0 | E50: 1 | F50: 100 | G50: Any | H50: Must widthstand pulse of 2A for 20µs
B51: Cgate | D51: =CGATE -> 22 | E51: 1 | G51: ='Design worksheet'!D404/100 -> 0.1 | H51: MLCC 50V or higher rating
B52: Rpgt | D52: ='Design worksheet'!D722/1000 -> 51.1 | E52: 1 | F52: 0.4892367906 | G52: ='Design worksheet'!D316 -> E96 (1%)
B53: Rpgb | D53: ='Design worksheet'!D724/1000 -> 5.49 | E53: 1 | F53: =2/D53 -> 0.364298725 | G53: =G52 -> E96 (1%)
B54: Rvout | D54: 1 | E54: 1 | F54: 1 | G54: Any | H54: Limits currents from output transient voltages on VOUT pin.
B55: Rgnd | D55: 0 | E55: 1 | F55: 100 | G55: Any | H55: Must widthstand pulse of 2A for 20µs
B56: D1 | D56: TVS | E56: 1 | F56: =IF(I56<25,"600W",IF(I56<120,"1500W","3000W")) -> 1500W | G56: =IF(I56<25,"SMB",IF(I56<120,"SMC","SMD")) -> SMC | H56: TVS should be chosen to prevent Vin transients from exceeding 25V | I56: ='Design worksheet'!D225 -> 73.04831238
B57: D2 | D57: Diode | E57: 1 | H57: Output diode is sometimes used to clamp negative Vout transients.
B59: *DNP: | C59: Place symbol and footprint, but do not populate component on PCB. Component may be required for design adjustments
B60: *NR: | C60: Component not required for this design. No Symbol or footprint required.
B61: Schematic shows a maximum of 4 sense resistors to match tool limitations… if more are required there is no part limitation.

Sheet Startup nominal (hidden)
B8: tstep | C8: =C10/(C9-1) -> 0.1199030303 | D8: ms | F8: Pset | G8: ='Design worksheet'!D350 -> 178.2242152 | H8: W
B9: #steps | C9: 100 | F9: istart icb | G9: ='Design worksheet'!D613 -> 7.973277788 | H9: A | I9: ICBOS | J9: =(specs!D23/'Design worksheet'!D189) -> 3.52 | K9: A
B10: time | C10: ='Design worksheet'!D450 -> 11.8704 | D10: ms | F10: ICB clamp | G10: ='Design worksheet'!D470 -> 8 | H10: A
B11: Vin | C11: ='Design worksheet'!D27 -> 12 | F11: ICB full | G11: ='Design worksheet'!D224 -> 69.52831238 | H11: A
B12: vstep | C12: =C11/(C9-1) -> 0.1212121212 | D12: V | F12: inrush | G12: ='Design worksheet'!D455 -> 3.08407374 | H12: A
B15: t | C15: vout | D15: PSET-I ideal | E15: PSET ICB | F15: ISTART ICB | G15: inrush
A16: 1 | B16: 1e-06 | C16: 1e-06 | D16: =($G$8/($C$11-C16)) - $J$9 -> 11.33201917 | E16: =IF(D16>$G$10,IF(D16<$G$11,D16,$G$11),$G$10) -> 11.33201917 | F16: =$G$9 -> 7.973277788 | G16: 0
A17: 2 | B17: =B16+$C$8 -> 0.1199040303 | C17: =C16+$C$12 -> 0.1212131212 | D17: =($G$8/($C$11-C17)) - $J$9 -> 11.4835704 | E17: =IF(D17>$G$10,IF(D17<$G$11,D17,$G$11),$G$10) -> 11.4835704 | F17: =$G$9 -> 7.973277788 | G17: =$G$12 -> 3.08407374
A18: 3 | B18: =B17+$C$8 -> 0.2398070606 | C18: =C17+$C$12 -> 0.2424252424 | D18: 11.6382464 | E18: 11.6382464 | F18: 7.973277788 | G18: =$G$12 -> 3.08407374
A19: 4 | B19: =B18+$C$8 -> 0.3597100909 | C19: 0.3636373636 | D19: 11.79614481 | E19: 11.79614481 | F19: 7.973277788 | G19: 3.08407374
A20: 5 | B20: 0.4796131212 | C20: 0.4848494848 | D20: 11.9573674 | E20: 11.9573674 | F20: 7.973277788 | G20: 3.08407374
A21: 6 | B21: 0.5995161515 | C21: 0.6060616061 | D21: 12.12202026 | E21: 12.12202026 | F21: 7.973277788 | G21: 3.08407374
A22: 7 | B22: 0.7194191818 | C22: 0.7272737273 | D22: 12.29021405 | E22: 12.29021405 | F22: 7.973277788 | G22: 3.08407374
A23: 8 | B23: 0.8393222121 | C23: 0.8484858485 | D23: 12.46206421 | E23: 12.46206421 | F23: 7.973277788 | G23: 3.08407374
A24: 9 | B24: 0.9592252424 | C24: 0.9696979697 | D24: 12.63769131 | E24: 12.63769131 | F24: 7.973277788 | G24: 3.08407374
A25: 10 | B25: 1.079128273 | C25: 1.090910091 | D25: 12.81722123 | E25: 12.81722123 | F25: 7.973277788 | G25: 3.08407374
A26: 11 | B26: 1.199031303 | C26: 1.212122212 | D26: 13.00078553 | E26: 13.00078553 | F26: 7.973277788 | G26: 3.08407374
A27: 12 | B27: 1.318934333 | C27: 1.333334333 | D27: 13.18852175 | E27: 13.18852175 | F27: 7.973277788 | G27: 3.08407374
A28: 13 | B28: 1.438837364 | C28: 1.454546455 | D28: 13.38057374 | E28: 13.38057374 | F28: 7.973277788 | G28: 3.08407374
A29: 14 | B29: 1.558740394 | C29: 1.575758576 | D29: 13.57709206 | E29: 13.57709206 | F29: 7.973277788 | G29: 3.08407374
A30: 15 | B30: 1.678643424 | C30: 1.696970697 | D30: 13.77823434 | E30: 13.77823434 | F30: 7.973277788 | G30: 3.08407374
A31: 16 | B31: 1.798546455 | C31: 1.818182818 | D31: 13.98416572 | E31: 13.98416572 | F31: 7.973277788 | G31: 3.08407374
A32: 17 | B32: 1.918449485 | C32: 1.939394939 | D32: 14.1950593 | E32: 14.1950593 | F32: 7.973277788 | G32: 3.08407374
A33: 18 | B33: 2.038352515 | C33: 2.060607061 | D33: 14.41109663 | E33: 14.41109663 | F33: 7.973277788 | G33: 3.08407374
A34: 19 | B34: 2.158255545 | C34: 2.181819182 | D34: 14.63246822 | E34: 14.63246822 | F34: 7.973277788 | G34: 3.08407374
A35: 20 | B35: 2.278158576 | C35: 2.303031303 | D35: 14.85937409 | E35: 14.85937409 | F35: 7.973277788 | G35: 3.08407374
A36: 21 | B36: 2.398061606 | C36: 2.424243424 | D36: 15.09202442 | E36: 15.09202442 | F36: 7.973277788 | G36: 3.08407374
A37: 22 | B37: 2.517964636 | C37: 2.545455545 | D37: 15.33064014 | E37: 15.33064014 | F37: 7.973277788 | G37: 3.08407374
A38: 23 | B38: 2.637867667 | C38: 2.666667667 | D38: 15.57545368 | E38: 15.57545368 | F38: 7.973277788 | G38: 3.08407374
A39: 24 | B39: 2.757770697 | C39: 2.787879788 | D39: 15.82670968 | E39: 15.82670968 | F39: 7.973277788 | G39: 3.08407374
A40: 25 | B40: 2.877673727 | C40: 2.909091909 | D40: 16.08466583 | E40: 16.08466583 | F40: 7.973277788 | G40: 3.08407374
A41: 26 | B41: 2.997576758 | C41: 3.03030403 | D41: 16.34959378 | E41: 16.34959378 | F41: 7.973277788 | G41: 3.08407374
A42: 27 | B42: 3.117479788 | C42: 3.151516152 | D42: 16.62178003 | E42: 16.62178003 | F42: 7.973277788 | G42: 3.08407374
A43: 28 | B43: 3.237382818 | C43: 3.272728273 | D43: 16.901527 | E43: 16.901527 | F43: 7.973277788 | G43: 3.08407374
A44: 29 | B44: 3.357285848 | C44: 3.393940394 | D44: 17.18915418 | E44: 17.18915418 | F44: 7.973277788 | G44: 3.08407374
A45: 30 | B45: 3.477188879 | C45: 3.515152515 | D45: 17.48499927 | E45: 17.48499927 | F45: 7.973277788 | G45: 3.08407374
A46: 31 | B46: 3.597091909 | C46: 3.636364636 | D46: 17.78941959 | E46: 17.78941959 | F46: 7.973277788 | G46: 3.08407374
A47: 32 | B47: 3.716994939 | C47: 3.757576758 | D47: 18.10279344 | E47: 18.10279344 | F47: 7.973277788 | G47: 3.08407374
A48: 33 | B48: 3.83689797 | C48: 3.878788879 | D48: 18.42552174 | E48: 18.42552174 | F48: 7.973277788 | G48: 3.08407374
A49: 34 | B49: 3.956801 | C49: 4.000001 | D49: 18.75802969 | E49: 18.75802969 | F49: 7.973277788 | G49: 3.08407374
A50: 35 | B50: 4.07670403 | C50: 4.121213121 | D50: 19.10076865 | E50: 19.10076865 | F50: 7.973277788 | G50: 3.08407374
A51: 36 | B51: 4.196607061 | C51: 4.242425242 | D51: 19.45421821 | E51: 19.45421821 | F51: 7.973277788 | G51: 3.08407374
A52: 37 | B52: 4.316510091 | C52: 4.363637364 | D52: 19.81888839 | E52: 19.81888839 | F52: 7.973277788 | G52: 3.08407374
A53: 38 | B53: 4.436413121 | C53: 4.484849485 | D53: 20.19532212 | E53: 20.19532212 | F53: 7.973277788 | G53: 3.08407374
A54: 39 | B54: 4.556316152 | C54: 4.606061606 | D54: 20.58409794 | E54: 20.58409794 | F54: 7.973277788 | G54: 3.08407374
A55: 40 | B55: 4.676219182 | C55: 4.727273727 | D55: 20.98583297 | E55: 20.98583297 | F55: 7.973277788 | G55: 3.08407374
A56: 41 | B56: 4.796122212 | C56: 4.848485848 | D56: 21.40118613 | E56: 21.40118613 | F56: 7.973277788 | G56: 3.08407374
A57: 42 | B57: 4.916025242 | C57: 4.96969797 | D57: 21.83086181 | E57: 21.83086181 | F57: 7.973277788 | G57: 3.08407374
A58: 43 | B58: 5.035928273 | C58: 5.090910091 | D58: 22.27561384 | E58: 22.27561384 | F58: 7.973277788 | G58: 3.08407374
A59: 44 | B59: 5.155831303 | C59: 5.212122212 | D59: 22.73624986 | E59: 22.73624986 | F59: 7.973277788 | G59: 3.08407374
A60: 45 | B60: 5.275734333 | C60: 5.333334333 | D60: 23.2136363 | E60: 23.2136363 | F60: 7.973277788 | G60: 3.08407374
A61: 46 | B61: 5.395637364 | C61: 5.454546455 | D61: 23.70870371 | E61: 23.70870371 | F61: 7.973277788 | G61: 3.08407374
A62: 47 | B62: 5.515540394 | C62: 5.575758576 | D62: 24.22245292 | E62: 24.22245292 | F62: 7.973277788 | G62: 3.08407374
A63: 48 | B63: 5.635443424 | C63: 5.696970697 | D63: 24.75596171 | E63: 24.75596171 | F63: 7.973277788 | G63: 3.08407374
A64: 49 | B64: 5.755346455 | C64: 5.818182818 | D64: 25.31039242 | E64: 25.31039242 | F64: 7.973277788 | G64: 3.08407374
A65: 50 | B65: 5.875249485 | C65: 5.939394939 | D65: 25.88700037 | E65: 25.88700037 | F65: 7.973277788 | G65: 3.08407374
A66: 51 | B66: 5.995152515 | C66: 6.060607061 | D66: 26.48714333 | E66: 26.48714333 | F66: 7.973277788 | G66: 3.08407374
A67: 52 | B67: 6.115055545 | C67: 6.181819182 | D67: 27.11229226 | E67: 27.11229226 | F67: 7.973277788 | G67: 3.08407374
A68: 53 | B68: 6.234958576 | C68: 6.303031303 | D68: 27.76404327 | E68: 27.76404327 | F68: 7.973277788 | G68: 3.08407374
A69: 54 | B69: 6.354861606 | C69: 6.424243424 | D69: 28.44413129 | E69: 28.44413129 | F69: 7.973277788 | G69: 3.08407374
A70: 55 | B70: 6.474764636 | C70: 6.545455545 | D70: 29.15444545 | E70: 29.15444545 | F70: 7.973277788 | G70: 3.08407374
A71: 56 | B71: 6.594667667 | C71: 6.666667667 | D71: 29.89704662 | E71: 29.89704662 | F71: 7.973277788 | G71: 3.08407374
A72: 57 | B72: 6.714570697 | C72: 6.787879788 | D72: 30.67418739 | E72: 30.67418739 | F72: 7.973277788 | G72: 3.08407374
A73: 58 | B73: 6.834473727 | C73: 6.909091909 | D73: 31.48833487 | E73: 31.48833487 | F73: 7.973277788 | G73: 3.08407374
A74: 59 | B74: 6.954376758 | C74: 7.03030403 | D74: 32.34219687 | E74: 32.34219687 | F74: 7.973277788 | G74: 3.08407374
A75: 60 | B75: 7.074279788 | C75: 7.151516152 | D75: 33.23875198 | E75: 33.23875198 | F75: 7.973277788 | G75: 3.08407374
A76: 61 | B76: 7.194182818 | C76: 7.272728273 | D76: 34.18128428 | E76: 34.18128428 | F76: 7.973277788 | G76: 3.08407374
A77: 62 | B77: 7.314085848 | C77: 7.393940394 | D77: 35.17342355 | E77: 35.17342355 | F77: 7.973277788 | G77: 3.08407374
A78: 63 | B78: 7.433988879 | C78: 7.515152515 | D78: 36.21919199 | E78: 36.21919199 | F78: 7.973277788 | G78: 3.08407374
A79: 64 | B79: 7.553891909 | C79: 7.636364636 | D79: 37.32305869 | E79: 37.32305869 | F79: 7.973277788 | G79: 3.08407374
A80: 65 | B80: 7.673794939 | C80: 7.757576758 | D80: 38.4900035 | E80: 38.4900035 | F80: 7.973277788 | G80: 3.08407374
A81: 66 | B81: 7.79369797 | C81: 7.878788879 | D81: =($G$8/($C$11-C81)) - $J$9 -> 39.72559213 | E81: =IF(D81>$G$10,IF(D81<$G$11,D81,$G$11),$G$10) -> 39.72559213 | F81: =$G$9 -> 7.973277788 | G81: 3.08407374
A82: 67 | B82: 7.913601 | C82: =C81+$C$12 -> 8.000001 | D82: 41.03606495 | E82: 41.03606495 | F82: 7.973277788 | G82: =$G$12 -> 3.08407374
A83: 68 | B83: =B82+$C$8 -> 8.03350403 | C83: 8.121213121 | D83: 42.42844234 | E83: 42.42844234 | F83: 7.973277788 | G83: 3.08407374
A84: 69 | B84: 8.153407061 | C84: 8.242425242 | D84: 43.91065055 | E84: 43.91065055 | F84: 7.973277788 | G84: 3.08407374
A85: 70 | B85: 8.273310091 | C85: 8.363637364 | D85: 45.49167267 | E85: 45.49167267 | F85: 7.973277788 | G85: 3.08407374
A86: 71 | B86: 8.393213121 | C86: 8.484849485 | D86: 47.18173083 | E86: 47.18173083 | F86: 7.973277788 | G86: 3.08407374
A87: 72 | B87: 8.513116152 | C87: 8.606061606 | D87: 48.99250746 | E87: 48.99250746 | F87: 7.973277788 | G87: 3.08407374
A88: 73 | B88: 8.633019182 | C88: 8.727273727 | D88: 50.93741574 | E88: 50.93741574 | F88: 7.973277788 | G88: 3.08407374
A89: 74 | B89: 8.752922212 | C89: 8.848485848 | D89: 53.0319324 | E89: 53.0319324 | F89: 7.973277788 | G89: 3.08407374
A90: 75 | B90: 8.872825242 | C90: 8.96969797 | D90: 55.29401044 | E90: 55.29401044 | F90: 7.973277788 | G90: 3.08407374
A91: 76 | B91: 8.992728273 | C91: 9.090910091 | D91: 57.74459505 | E91: 57.74459505 | F91: 7.973277788 | G91: 3.08407374
A92: 77 | B92: 9.112631303 | C92: 9.212122212 | D92: 60.40827405 | E92: 60.40827405 | F92: 7.973277788 | G92: 3.08407374
A93: 78 | B93: 9.232534333 | C93: 9.333334333 | D93: 63.31410578 | E93: 63.31410578 | F93: 7.973277788 | G93: 3.08407374
A94: 79 | B94: 9.352437364 | C94: 9.454546455 | D94: 66.4966835 | E94: 66.4966835 | F94: 7.973277788 | G94: 3.08407374
A95: 80 | B95: 9.472340394 | C95: 9.575758576 | D95: 69.99751912 | E95: 69.52831238 | F95: 7.973277788 | G95: 3.08407374
A96: 81 | B96: 9.592243424 | C96: 9.696970697 | D96: 73.86686391 | E96: 69.52831238 | F96: 7.973277788 | G96: 3.08407374
A97: 82 | B97: 9.712146455 | C97: 9.818182818 | D97: 78.16613609 | E97: 69.52831238 | F97: 7.973277788 | G97: 3.08407374
A98: 83 | B98: 9.832049485 | C98: 9.939394939 | D98: 82.97120526 | E98: 69.52831238 | F98: 7.973277788 | G98: 3.08407374
A99: 84 | B99: 9.951952515 | C99: 10.06060706 | D99: 88.37690837 | E99: 69.52831238 | F99: 7.973277788 | G99: 3.08407374
A100: 85 | B100: 10.07185555 | C100: 10.18181918 | D100: 94.5033723 | E100: 69.52831238 | F100: 7.973277788 | G100: 3.08407374
A101: 86 | B101: 10.19175858 | C101: 10.3030313 | D101: 101.5050459 | E101: 69.52831238 | F101: 7.973277788 | G101: 3.08407374
A102: 87 | B102: 10.31166161 | C102: 10.42424342 | D102: 109.5839007 | E102: 69.52831238 | F102: 7.973277788 | G102: 3.08407374
A103: 88 | B103: 10.43156464 | C103: 10.54545555 | D103: 119.0092322 | E103: 69.52831238 | F103: 7.973277788 | G103: 3.08407374
A104: 89 | B104: 10.55146767 | C104: 10.66666767 | D104: 130.1482617 | E104: 69.52831238 | F104: 7.973277788 | G104: 3.08407374
A105: 90 | B105: 10.6713707 | C105: 10.78787979 | D105: 143.5150989 | E105: 69.52831238 | F105: 7.973277788 | G105: 3.08407374
A106: 91 | B106: 10.79127373 | C106: 10.90909191 | D106: 159.8523471 | E106: 69.52831238 | F106: 7.973277788 | G106: 3.08407374
A107: 92 | B107: 10.91117676 | C107: 11.03030403 | D107: 180.2739115 | E107: 69.52831238 | F107: 7.973277788 | G107: 3.08407374
A108: 93 | B108: 11.03107979 | C108: 11.15151615 | D108: 206.5302155 | E108: 69.52831238 | F108: 7.973277788 | G108: 3.08407374
A109: 94 | B109: 11.15098282 | C109: 11.27272827 | D109: 241.5386329 | E109: 69.52831238 | F109: 7.973277788 | G109: 3.08407374 | O109: nom
A110: 95 | B110: 11.27088585 | C110: 11.39394039 | D110: 290.5504404 | E110: 69.52831238 | F110: 7.973277788 | G110: 3.08407374
A111: 96 | B111: 11.39078888 | C111: 11.51515252 | D111: 364.0682021 | E111: 69.52831238 | F111: 7.973277788 | G111: 3.08407374
A112: 97 | B112: 11.51069191 | C112: 11.63636464 | D112: 486.5979398 | E112: 69.52831238 | F112: 7.973277788 | G112: 3.08407374
A113: 98 | B113: 11.63059494 | C113: 11.75757676 | D113: 731.6579205 | E113: 69.52831238 | F113: 7.973277788 | G113: 3.08407374
A114: 99 | B114: 11.75049797 | C114: 11.87878888 | D114: 1466.841906 | E114: 69.52831238 | F114: 7.973277788 | G114: 0
A115: 100 | B115: 11.870401 | C115: 12.000001 | D115: -178224220.5 | E115: =E114 -> 69.52831238 | F115: 7.973277788 | G115: 0

Sheet Startup worstcase (hidden)
B11: tstep | C11: =C13/(C12-1) -> 0.2113333333 | D11: ms | F11: Pset | G11: ='Design worksheet'!D349 -> 170.3180236 | H11: W | L11: tstep | M11: =M13/(M12-1) -> 0.07521212121 | N11: ms | P11: Pset | Q11: ='Design worksheet'!D351 -> 186.3879011 | R11: W
B12: #steps | C12: 100 | F12: istart icb | G12: ='Design worksheet'!D612 -> 4.989912215 | H12: A | I12: ICBwc | J12: =(specs!E23/'Design worksheet'!D202) -> 4.55295385 | K12: A | L12: #steps | M12: 100 | P12: istart icb | Q12: ='Design worksheet'!D614 -> 11.6268445 | R12: A | S12: ICBwc | T12: =(specs!C23/'Design worksheet'!D203) -> 1.968458579 | U12: A
B13: time | C13: ='Design worksheet'!D451 -> 20.922 | D13: ms | F13: ICB clamp | G13: ='Design worksheet'!D469 -> 6.299067454 | H13: A | L13: time | M13: ='Design worksheet'!D449 -> 7.446 | N13: ms | P13: ICB clamp | Q13: ='Design worksheet'!D471 -> 9.756329679 | R13: A
B14: Vin | C14: ='Design worksheet'!D26 -> 13.2 | F14: ICB full | G14: ='Design worksheet'!D207 -> 64.75023876 | H14: A | L14: Vin | M14: ='Design worksheet'!D25 -> 10.2 | P14: ICB full | Q14: ='Design worksheet'!D208 -> 75.03112079 | R14: A
B15: vstep | C15: =C14/(C12-1) -> 0.1333333333 | D15: V | F15: inrush | G15: ='Design worksheet'!D454 -> 1.754790032 | H15: A | L15: vstep | M15: =M14/(M12-1) -> 0.103030303 | N15: V | P15: inrush | Q15: ='Design worksheet'!D456 -> 4.571867945 | R15: A
B17: min | L17: max
B18: t | C18: vout | D18: PSET-I ideal | E18: PSET ICB | F18: ISTART ICB | G18: inrush | L18: t | M18: vout | N18: PSET-I ideal | O18: PSET ICB | P18: ISTART ICB | Q18: inrush
A19: 1 | B19: 1e-06 | C19: 1e-06 | D19: =($G$11/($C$14-C19)) - $J$12 -> 8.349927703 | E19: =IF(D19>$G$13,IF(D19<$G$14,D19,$G$14),$G$13) -> 8.349927703 | F19: =$G$12 -> 4.989912215 | G19: 0 | L19: 1e-06 | M19: 1e-06 | N19: =($Q$11/($M$14-M19)) - $T$12 -> 16.30486685 | O19: =IF(N19>$Q$13,IF(N19<$Q$14,N19,$Q$14),$Q$13) -> 16.30486685 | P19: =$Q$12 -> 11.6268445 | Q19: 0
A20: 2 | B20: =B19+$C$11 -> 0.2113343333 | C20: =C19+$C$15 -> 0.1333343333 | D20: =($G$11/($C$14-C20)) - $J$12 -> 8.48158977 | E20: 8.48158977 | F20: =$G$12 -> 4.989912215 | G20: =$G$15 -> 1.754790032 | L20: =L19+$M$11 -> 0.07521312121 | M20: =M19+$M$15 -> 0.103031303 | N20: =($Q$11/($M$14-M20)) - $T$12 -> 16.49132938 | O20: =IF(N20>$Q$13,IF(N20<$Q$14,N20,$Q$14),$Q$13) -> 16.49132938 | P20: =$Q$12 -> 11.6268445 | Q20: =$Q$15 -> 4.571867945
A21: 3 | B21: =B20+$C$11 -> 0.4226676667 | C21: =C20+$C$15 -> 0.2666676667 | D21: 8.615966519 | E21: 8.615966519 | F21: 4.989912215 | G21: =$G$15 -> 1.754790032 | L21: =L20+$M$11 -> 0.1504252424 | M21: =M20+$M$15 -> 0.2060616061 | N21: 16.68163649 | O21: 16.68163649 | P21: 11.6268445 | Q21: =$Q$15 -> 4.571867945
A22: 4 | B22: =B21+$C$11 -> 0.634001 | C22: 0.400001 | D22: 8.753142783 | E22: 8.753142783 | F22: 4.989912215 | G22: 1.754790032 | L22: 0.2256373636 | M22: 0.3090919091 | N22: 16.87590833 | O22: 16.87590833 | P22: 11.6268445 | Q22: 4.571867945
A23: 5 | B23: 0.8453343333 | C23: 0.5333343333 | D23: 8.893206969 | E23: 8.893206969 | F23: 4.989912215 | G23: 1.754790032 | L23: 0.3008494848 | M23: 0.4121222121 | N23: 17.07427011 | O23: 17.07427011 | P23: 11.6268445 | Q23: 4.571867945
A24: 6 | B24: 1.056667667 | C24: 0.6666676667 | D24: 9.036251245 | E24: 9.036251245 | F24: 4.989912215 | G24: 1.754790032 | L24: 0.3760616061 | M24: 0.5151525152 | N24: 17.27685235 | O24: 17.27685235 | P24: 11.6268445 | Q24: 4.571867945
A25: 7 | B25: 1.268001 | C25: 0.800001 | D25: 9.182371742 | E25: 9.182371742 | F25: 4.989912215 | G25: 1.754790032 | L25: 0.4512737273 | M25: 0.6181828182 | N25: 17.4837912 | O25: 17.4837912 | P25: 11.6268445 | Q25: 4.571867945
A26: 8 | B26: 1.479334333 | C26: 0.9333343333 | D26: 9.331668771 | E26: 9.331668771 | F26: 4.989912215 | G26: 1.754790032 | L26: 0.5264858485 | M26: 0.7212131212 | N26: 17.69522872 | O26: 17.69522872 | P26: 11.6268445 | Q26: 4.571867945
A27: 9 | B27: 1.690667667 | C27: 1.066667667 | D27: 9.484247054 | E27: 9.484247054 | F27: 4.989912215 | G27: 1.754790032 | L27: 0.6016979697 | M27: 0.8242434242 | N27: 17.91131322 | O27: 17.91131322 | P27: 11.6268445 | Q27: 4.571867945
A28: 10 | B28: 1.902001 | C28: 1.200001 | D28: 9.640215966 | E28: 9.640215966 | F28: 4.989912215 | G28: 1.754790032 | L28: 0.6769100909 | M28: 0.9272737273 | N28: 18.13219959 | O28: 18.13219959 | P28: 11.6268445 | Q28: 4.571867945
A29: 11 | B29: 2.113334333 | C29: 1.333334333 | D29: 9.799689798 | E29: 9.799689798 | F29: 4.989912215 | G29: 1.754790032 | L29: 0.7521222121 | M29: 1.03030403 | N29: 18.35804971 | O29: 18.35804971 | P29: 11.6268445 | Q29: 4.571867945
A30: 12 | B30: 2.324667667 | C30: 1.466667667 | D30: 9.962788035 | E30: 9.962788035 | F30: 4.989912215 | G30: 1.754790032 | L30: 0.8273343333 | M30: 1.133334333 | N30: 18.58903278 | O30: 18.58903278 | P30: 11.6268445 | Q30: 4.571867945
A31: 13 | B31: 2.536001 | C31: 1.600001 | D31: 10.12963566 | E31: 10.12963566 | F31: 4.989912215 | G31: 1.754790032 | L31: 0.9025464545 | M31: 1.236364636 | N31: 18.82532581 | O31: 18.82532581 | P31: 11.6268445 | Q31: 4.571867945
A32: 14 | B32: 2.747334333 | C32: 1.733334333 | D32: 10.30036346 | E32: 10.30036346 | F32: 4.989912215 | G32: 1.754790032 | L32: 0.9777585758 | M32: 1.339394939 | N32: 19.06711403 | O32: 19.06711403 | P32: 11.6268445 | Q32: 4.571867945
A33: 15 | B33: 2.958667667 | C33: 1.866667667 | D33: 10.47510838 | E33: 10.47510838 | F33: 4.989912215 | G33: 1.754790032 | L33: 1.052970697 | M33: 1.442425242 | N33: 19.31459139 | O33: 19.31459139 | P33: 11.6268445 | Q33: 4.571867945
A34: 16 | B34: 3.170001 | C34: 2.000001 | D34: 10.6540139 | E34: 10.6540139 | F34: 4.989912215 | G34: 1.754790032 | L34: 1.128182818 | M34: 1.545455545 | N34: 19.56796106 | O34: 19.56796106 | P34: 11.6268445 | Q34: 4.571867945
A35: 17 | B35: 3.381334333 | C35: 2.133334333 | D35: 10.8372304 | E35: 10.8372304 | F35: 4.989912215 | G35: 1.754790032 | L35: 1.203394939 | M35: 1.648485848 | N35: 19.82743602 | O35: 19.82743602 | P35: 11.6268445 | Q35: 4.571867945
A36: 18 | B36: 3.592667667 | C36: 2.266667667 | D36: 11.02491559 | E36: 11.02491559 | F36: 4.989912215 | G36: 1.754790032 | L36: 1.278607061 | M36: 1.751516152 | N36: 20.09323965 | O36: 20.09323965 | P36: 11.6268445 | Q36: 4.571867945
A37: 19 | B37: 3.804001 | C37: 2.400001 | D37: 11.21723498 | E37: 11.21723498 | F37: 4.989912215 | G37: 1.754790032 | L37: 1.353819182 | M37: 1.854546455 | N37: 20.36560632 | O37: 20.36560632 | P37: 11.6268445 | Q37: 4.571867945
A38: 20 | B38: 4.015334333 | C38: 2.533334333 | D38: 11.41436236 | E38: 11.41436236 | F38: 4.989912215 | G38: 1.754790032 | L38: 1.429031303 | M38: 1.957576758 | N38: 20.64478217 | O38: 20.64478217 | P38: 11.6268445 | Q38: 4.571867945
A39: 21 | B39: 4.226667667 | C39: 2.666667667 | D39: 11.61648031 | E39: 11.61648031 | F39: 4.989912215 | G39: 1.754790032 | L39: 1.504243424 | M39: 2.060607061 | N39: 20.93102576 | O39: 20.93102576 | P39: 11.6268445 | Q39: 4.571867945
A40: 22 | B40: 4.438001 | C40: 2.800001 | D40: 11.82378076 | E40: 11.82378076 | F40: 4.989912215 | G40: 1.754790032 | L40: 1.579455545 | M40: 2.163637364 | N40: 21.22460893 | O40: 21.22460893 | P40: 11.6268445 | Q40: 4.571867945
A41: 23 | B41: 4.649334333 | C41: 2.933334333 | D41: 12.03646565 | E41: 12.03646565 | F41: 4.989912215 | G41: 1.754790032 | L41: 1.654667667 | M41: 2.266667667 | N41: 21.52581763 | O41: 21.52581763 | P41: 11.6268445 | Q41: 4.571867945
A42: 24 | B42: 4.860667667 | C42: 3.066667667 | D42: 12.25474751 | E42: 12.25474751 | F42: 4.989912215 | G42: 1.754790032 | L42: 1.729879788 | M42: 2.36969797 | N42: 21.83495289 | O42: 21.83495289 | P42: 11.6268445 | Q42: 4.571867945
A43: 25 | B43: 5.072001 | C43: 3.200001 | D43: 12.47885021 | E43: 12.47885021 | F43: 4.989912215 | G43: 1.754790032 | L43: 1.805091909 | M43: 2.472728273 | N43: 22.15233175 | O43: 22.15233175 | P43: 11.6268445 | Q43: 4.571867945
A44: 26 | B44: 5.283334333 | C44: 3.333334333 | D44: 12.70900975 | E44: 12.70900975 | F44: 4.989912215 | G44: 1.754790032 | L44: 1.88030403 | M44: 2.575758576 | N44: 22.47828842 | O44: 22.47828842 | P44: 11.6268445 | Q44: 4.571867945
A45: 27 | B45: 5.494667667 | C45: 3.466667667 | D45: 12.94547503 | E45: 12.94547503 | F45: 4.989912215 | G45: 1.754790032 | L45: 1.955516152 | M45: 2.678788879 | N45: 22.81317541 | O45: 22.81317541 | P45: 11.6268445 | Q45: 4.571867945
A46: 28 | B46: 5.706001 | C46: 3.600001 | D46: 13.18850879 | E46: 13.18850879 | F46: 4.989912215 | G46: 1.754790032 | L46: 2.030728273 | M46: 2.781819182 | N46: 23.15736481 | O46: 23.15736481 | P46: 11.6268445 | Q46: 4.571867945
A47: 29 | B47: 5.917334333 | C47: 3.733334333 | D47: 13.43838857 | E47: 13.43838857 | F47: 4.989912215 | G47: 1.754790032 | L47: 2.105940394 | M47: 2.884849485 | N47: 23.5112497 | O47: 23.5112497 | P47: 11.6268445 | Q47: 4.571867945
A48: 30 | B48: 6.128667667 | C48: 3.866667667 | D48: 13.69540778 | E48: 13.69540778 | F48: 4.989912215 | G48: 1.754790032 | L48: 2.181152515 | M48: 2.987879788 | N48: 23.87524558 | O48: 23.87524558 | P48: 11.6268445 | Q48: 4.571867945
A49: 31 | B49: 6.340001 | C49: 4.000001 | D49: 13.95987681 | E49: 13.95987681 | F49: 4.989912215 | G49: 1.754790032 | L49: 2.256364636 | M49: 3.090910091 | N49: 24.24979207 | O49: 24.24979207 | P49: 11.6268445 | Q49: 4.571867945
A50: 32 | B50: 6.551334333 | C50: 4.133334333 | D50: 14.23212435 | E50: 14.23212435 | F50: 4.989912215 | G50: 1.754790032 | L50: 2.331576758 | M50: 3.193940394 | N50: 24.63535464 | O50: 24.63535464 | P50: 11.6268445 | Q50: 4.571867945
A51: 33 | B51: 6.762667667 | C51: 4.266667667 | D51: 14.51249869 | E51: =IF(D51>$G$13,IF(D51<$G$14,D51,$G$14),$G$13) -> 14.51249869 | F51: 4.989912215 | G51: 1.754790032 | L51: 2.406788879 | M51: 3.296970697 | N51: 25.03242653 | O51: 25.03242653 | P51: 11.6268445 | Q51: 4.571867945
A52: 34 | B52: 6.974001 | C52: 4.400001 | D52: 14.80136921 | E52: 14.80136921 | F52: 4.989912215 | G52: 1.754790032 | L52: 2.482001 | M52: 3.400001 | N52: 25.44153091 | O52: 25.44153091 | P52: 11.6268445 | Q52: 4.571867945
A53: 35 | B53: 7.185334333 | C53: 4.533334333 | D53: 15.09912806 | E53: 15.09912806 | F53: 4.989912215 | G53: 1.754790032 | L53: 2.557213121 | M53: 3.503031303 | N53: 25.86322312 | O53: 25.86322312 | P53: 11.6268445 | Q53: 4.571867945
A54: 36 | B54: 7.396667667 | C54: 4.666667667 | D54: 15.40619188 | E54: 15.40619188 | F54: 4.989912215 | G54: 1.754790032 | L54: 2.632425242 | M54: 3.606061606 | N54: 26.29809321 | O54: 26.29809321 | P54: 11.6268445 | Q54: 4.571867945
A55: 37 | B55: 7.608001 | C55: 4.800001 | D55: 15.72300375 | E55: 15.72300375 | F55: 4.989912215 | G55: 1.754790032 | L55: 2.707637364 | M55: 3.709091909 | N55: 26.74676871 | O55: 26.74676871 | P55: 11.6268445 | Q55: 4.571867945
A56: 38 | B56: 7.819334333 | C56: 4.933334333 | D56: 16.05003537 | E56: 16.05003537 | F56: 4.989912215 | G56: 1.754790032 | L56: 2.782849485 | M56: 3.812122212 | N56: 27.20991761 | O56: 27.20991761 | P56: 11.6268445 | Q56: 4.571867945
A57: 39 | B57: 8.030667667 | C57: 5.066667667 | D57: 16.38778933 | E57: 16.38778933 | F57: 4.989912215 | G57: 1.754790032 | L57: 2.858061606 | M57: 3.915152515 | N57: 27.68825172 | O57: 27.68825172 | P57: 11.6268445 | Q57: 4.571867945
A58: 40 | B58: 8.242001 | C58: 5.200001 | D58: 16.73680176 | E58: 16.73680176 | F58: 4.989912215 | G58: 1.754790032 | L58: 2.933273727 | M58: 4.018182818 | N58: 28.18253031 | O58: 28.18253031 | P58: 11.6268445 | Q58: 4.571867945
A59: 41 | B59: 8.453334333 | C59: 5.333334333 | D59: 17.09764512 | E59: 17.09764512 | F59: 4.989912215 | G59: 1.754790032 | L59: 3.008485848 | M59: 4.121213121 | N59: 28.6935641 | O59: 28.6935641 | P59: 11.6268445 | Q59: 4.571867945
A60: 42 | B60: 8.664667667 | C60: 5.466667667 | D60: 17.47093136 | E60: 17.47093136 | F60: 4.989912215 | G60: 1.754790032 | L60: 3.08369797 | M60: 4.224243424 | N60: 29.22221975 | O60: 29.22221975 | P60: 11.6268445 | Q60: 4.571867945
A61: 43 | B61: 8.876001 | C61: 5.600001 | D61: 17.85731536 | E61: 17.85731536 | F61: 4.989912215 | G61: 1.754790032 | L61: 3.158910091 | M61: 4.327273727 | N61: 29.76942473 | O61: 29.76942473 | P61: 11.6268445 | Q61: 4.571867945
A62: 44 | B62: 9.087334333 | C62: 5.733334333 | D62: 18.25749879 | E62: 18.25749879 | F62: 4.989912215 | G62: 1.754790032 | L62: 3.234122212 | M62: 4.43030403 | N62: 30.33617274 | O62: 30.33617274 | P62: 11.6268445 | Q62: 4.571867945
A63: 45 | B63: 9.298667667 | C63: 5.866667667 | D63: 18.67223435 | E63: 18.67223435 | F63: 4.989912215 | G63: 1.754790032 | L63: 3.309334333 | M63: 4.533334333 | N63: 30.92352978 | O63: 30.92352978 | P63: 11.6268445 | Q63: 4.571867945
A64: 46 | B64: 9.510001 | C64: 6.000001 | D64: 19.10233049 | E64: 19.10233049 | F64: 4.989912215 | G64: 1.754790032 | L64: 3.384546455 | M64: 4.636364636 | N64: 31.53264078 | O64: 31.53264078 | P64: 11.6268445 | Q64: 4.571867945
A65: 47 | B65: 9.721334333 | C65: 6.133334333 | D65: 19.54865667 | E65: 19.54865667 | F65: 4.989912215 | G65: 1.754790032 | L65: 3.459758576 | M65: 4.739394939 | N65: 32.16473711 | O65: 32.16473711 | P65: 11.6268445 | Q65: 4.571867945
A66: 48 | B66: 9.932667667 | C66: 6.266667667 | D66: 20.01214925 | E66: 20.01214925 | F66: 4.989912215 | G66: 1.754790032 | L66: 3.534970697 | M66: 4.842425242 | N66: 32.82114485 | O66: 32.82114485 | P66: 11.6268445 | Q66: 4.571867945
A67: 49 | B67: 10.144001 | C67: 6.400001 | D67: 20.49381801 | E67: 20.49381801 | F67: 4.989912215 | G67: 1.754790032 | L67: 3.610182818 | M67: 4.945455545 | N67: 33.50329406 | O67: 33.50329406 | P67: 11.6268445 | Q67: 4.571867945
A68: 50 | B68: 10.35533433 | C68: 6.533334333 | D68: 20.99475352 | E68: 20.99475352 | F68: 4.989912215 | G68: 1.754790032 | L68: 3.685394939 | M68: 5.048485848 | N68: 34.21272925 | O68: 34.21272925 | P68: 11.6268445 | Q68: 4.571867945
A69: 51 | B69: 10.56666767 | C69: 6.666667667 | D69: 21.51613539 | E69: 21.51613539 | F69: 4.989912215 | G69: 1.754790032 | L69: 3.760607061 | M69: 5.151516152 | N69: 34.95112099 | O69: 34.95112099 | P69: 11.6268445 | Q69: 4.571867945
A70: 52 | B70: 10.778001 | C70: 6.800001 | D70: 22.0592415 | E70: 22.0592415 | F70: 4.989912215 | G70: 1.754790032 | L70: 3.835819182 | M70: 5.254546455 | N70: 35.72027905 | O70: 35.72027905 | P70: 11.6268445 | Q70: 4.571867945
A71: 53 | B71: 10.98933433 | C71: 6.933334333 | D71: 22.62545851 | E71: 22.62545851 | F71: 4.989912215 | G71: 1.754790032 | L71: 3.911031303 | M71: 5.357576758 | N71: 36.52216725 | O71: 36.52216725 | P71: 11.6268445 | Q71: 4.571867945
A72: 54 | B72: 11.20066767 | C72: 7.066667667 | D72: 23.21629366 | E72: 23.21629366 | F72: 4.989912215 | G72: 1.754790032 | L72: 3.986243424 | M72: 5.460607061 | N72: 37.35892016 | O72: 37.35892016 | P72: 11.6268445 | Q72: 4.571867945
A73: 55 | B73: 11.412001 | C73: 7.200001 | D73: 23.83338815 | E73: 23.83338815 | F73: 4.989912215 | G73: 1.754790032 | L73: 4.061455545 | M73: 5.563637364 | N73: 38.2328621 | O73: 38.2328621 | P73: 11.6268445 | Q73: 4.571867945
A74: 56 | B74: 11.62333433 | C74: 7.333334333 | D74: 24.47853239 | E74: 24.47853239 | F74: 4.989912215 | G74: 1.754790032 | L74: 4.136667667 | M74: 5.666667667 | N74: 39.14652868 | O74: 39.14652868 | P74: 11.6268445 | Q74: 4.571867945
A75: 57 | B75: 11.83466767 | C75: 7.466667667 | D75: 25.15368336 | E75: 25.15368336 | F75: 4.989912215 | G75: 1.754790032 | L75: 4.211879788 | M75: 5.76969797 | N75: 40.10269139 | O75: 40.10269139 | P75: 11.6268445 | Q75: 4.571867945
A76: 58 | B76: 12.046001 | C76: 7.600001 | D76: 25.86098437 | E76: 25.86098437 | F76: 4.989912215 | G76: 1.754790032 | L76: 4.287091909 | M76: 5.872728273 | N76: 41.10438567 | O76: 41.10438567 | P76: 11.6268445 | Q76: 4.571867945
A77: 59 | B77: 12.25733433 | C77: 7.733334333 | D77: 26.60278787 | E77: 26.60278787 | F77: 4.989912215 | G77: 1.754790032 | L77: 4.36230403 | M77: 5.975758576 | N77: 42.1549431 | O77: 42.1549431 | P77: 11.6268445 | Q77: 4.571867945
A78: 60 | B78: 12.46866767 | C78: 7.866667667 | D78: 27.38168156 | E78: 27.38168156 | F78: 4.989912215 | G78: 1.754790032 | L78: 4.437516152 | M78: 6.078788879 | N78: 43.25802841 | O78: 43.25802841 | P78: 11.6268445 | Q78: 4.571867945
A79: 61 | B79: 12.680001 | C79: 8.000001 | D79: 28.20051853 | E79: 28.20051853 | F79: 4.989912215 | G79: 1.754790032 | L79: 4.512728273 | M79: 6.181819182 | N79: 44.41768221 | O79: 44.41768221 | P79: 11.6268445 | Q79: 4.571867945
A80: 62 | B80: 12.89133433 | C80: 8.133334333 | D80: 29.06245218 | E80: 29.06245218 | F80: 4.989912215 | G80: 1.754790032 | L80: 4.587940394 | M80: 6.284849485 | N80: 45.63837043 | O80: 45.63837043 | P80: 11.6268445 | Q80: 4.571867945
A81: 63 | B81: 13.10266767 | C81: 8.266667667 | D81: 29.97097685 | E81: 29.97097685 | F81: 4.989912215 | G81: 1.754790032 | L81: 4.663152515 | M81: 6.387879788 | N81: 46.92504183 | O81: 46.92504183 | P81: 11.6268445 | Q81: 4.571867945
A82: 64 | B82: 13.314001 | C82: 8.400001 | D82: 30.92997513 | E82: 30.92997513 | F82: 4.989912215 | G82: 1.754790032 | L82: 4.738364636 | M82: 6.490910091 | N82: 48.28319498 | O82: 48.28319498 | P82: 11.6268445 | Q82: 4.571867945
A83: 65 | B83: 13.52533433 | C83: 8.533334333 | D83: 31.94377331 | E83: =IF(D83>$G$13,IF(D83<$G$14,D83,$G$14),$G$13) -> 31.94377331 | F83: 4.989912215 | G83: 1.754790032 | L83: 4.813576758 | M83: 6.593940394 | N83: 49.71895691 | O83: 49.71895691 | P83: 11.6268445 | Q83: 4.571867945
A84: 66 | B84: 13.73666767 | C84: 8.666667667 | D84: =($G$11/($C$14-C84)) - $J$12 -> 33.0172067 | E84: 33.0172067 | F84: =$G$12 -> 4.989912215 | G84: 1.754790032 | L84: 4.888788879 | M84: 6.696970697 | N84: =($Q$11/($M$14-M84)) - $T$12 -> 51.23917545 | O84: =IF(N84>$Q$13,IF(N84<$Q$14,N84,$Q$14),$Q$13) -> 51.23917545 | P84: =$Q$12 -> 11.6268445 | Q84: 4.571867945
A85: 67 | B85: 13.948001 | C85: =C84+$C$15 -> 8.800001 | D85: 34.15569668 | E85: 34.15569668 | F85: 4.989912215 | G85: =$G$15 -> 1.754790032 | L85: =L84+$M$11 -> 4.964001 | M85: =M84+$M$15 -> 6.800001 | N85: 52.85152847 | O85: 52.85152847 | P85: 11.6268445 | Q85: =$Q$15 -> 4.571867945
A86: 68 | B86: =B85+$C$11 -> 14.15933433 | C86: 8.933334333 | D86: 35.36534229 | E86: 35.36534229 | F86: 4.989912215 | G86: 1.754790032 | L86: 5.039213121 | M86: 6.903031303 | N86: 54.56465358 | O86: 54.56465358 | P86: 11.6268445 | Q86: 4.571867945
A87: 69 | B87: 14.37066767 | C87: 9.066667667 | D87: 36.65302957 | E87: 36.65302957 | F87: 4.989912215 | G87: 1.754790032 | L87: 5.114425242 | M87: 7.006061606 | N87: 56.38830293 | O87: 56.38830293 | P87: 11.6268445 | Q87: 4.571867945
A88: 70 | B88: 14.582001 | C88: 9.200001 | D88: 38.0265627 | E88: 38.0265627 | F88: 4.989912215 | G88: 1.754790032 | L88: 5.189637364 | M88: 7.109091909 | N88: 58.33352895 | O88: 58.33352895 | P88: 11.6268445 | Q88: 4.571867945
A89: 71 | B89: 14.79333433 | C89: 9.333334333 | D89: 39.49482227 | E89: 39.49482227 | F89: 4.989912215 | G89: 1.754790032 | L89: 5.264849485 | M89: 7.212122212 | N89: 60.41290852 | O89: 60.41290852 | P89: 11.6268445 | Q89: 4.571867945
A90: 72 | B90: 15.00466767 | C90: 9.466667667 | D90: 41.06795755 | E90: 41.06795755 | F90: 4.989912215 | G90: 1.754790032 | L90: 5.340061606 | M90: 7.315152515 | N90: 62.64081526 | O90: 62.64081526 | P90: 11.6268445 | Q90: 4.571867945
A91: 73 | B91: 15.216001 | C91: 9.600001 | D91: 42.7576214 | E91: 42.7576214 | F91: 4.989912215 | G91: 1.754790032 | L91: 5.415273727 | M91: 7.418182818 | N91: 65.03375219 | O91: 65.03375219 | P91: 11.6268445 | Q91: 4.571867945
A92: 74 | B92: 15.42733433 | C92: 9.733334333 | D92: 44.57725944 | E92: 44.57725944 | F92: 4.989912215 | G92: 1.754790032 | L92: 5.490485848 | M92: 7.521213121 | N92: 67.61076126 | O92: 67.61076126 | P92: 11.6268445 | Q92: 4.571867945
A93: 75 | B93: 15.63866767 | C93: 9.866667667 | D93: 46.54246856 | E93: 46.54246856 | F93: 4.989912215 | G93: 1.754790032 | L93: 5.56569797 | M93: 7.624243424 | N93: 70.39393113 | O93: 70.39393113 | P93: 11.6268445 | Q93: 4.571867945
A94: 76 | B94: 15.850001 | C94: 10.000001 | D94: 48.67144516 | E94: 48.67144516 | F94: 4.989912215 | G94: 1.754790032 | L94: 5.640910091 | M94: 7.727273727 | N94: 73.40903192 | O94: 73.40903192 | P94: 11.6268445 | Q94: 4.571867945
A95: 77 | B95: 16.06133433 | C95: 10.13333433 | D95: 50.98555022 | E95: 50.98555022 | F95: 4.989912215 | G95: 1.754790032 | L95: 5.716122212 | M95: 7.83030403 | N95: 76.6863155 | O95: 75.03112079 | P95: 11.6268445 | Q95: 4.571867945
A96: 78 | B96: 16.27266767 | C96: 10.26666767 | D96: 53.51002854 | E96: 53.51002854 | F96: 4.989912215 | G96: 1.754790032 | L96: 5.791334333 | M96: 7.933334333 | N96: 80.26153408 | O96: 75.03112079 | P96: 11.6268445 | Q96: 4.571867945
A97: 79 | B97: 16.484001 | C97: 10.400001 | D97: 56.27493345 | E97: 56.27493345 | F97: 4.989912215 | G97: 1.754790032 | L97: 5.866546455 | M97: 8.036364636 | N97: 84.17724983 | O97: 75.03112079 | P97: 11.6268445 | Q97: 4.571867945
A98: 80 | B98: 16.69533433 | C98: 10.53333433 | D98: 59.31632895 | E98: 59.31632895 | F98: 4.989912215 | G98: 1.754790032 | L98: 5.941758576 | M98: 8.139394939 | N98: 88.48453734 | O98: 75.03112079 | P98: 11.6268445 | Q98: 4.571867945
A99: 81 | B99: 16.90666767 | C99: 10.66666767 | D99: 62.67787148 | E99: 62.67787148 | F99: 4.989912215 | G99: 1.754790032 | L99: 6.016970697 | M99: 8.242425242 | N99: 93.24522377 | O99: 75.03112079 | P99: 11.6268445 | Q99: 4.571867945
A100: 82 | B100: 17.118001 | C100: 10.800001 | D100: 66.41291889 | E100: 64.75023876 | F100: 4.989912215 | G100: 1.754790032 | L100: 6.092182818 | M100: 8.345455545 | N100: 98.53487564 | O100: 75.03112079 | P100: 11.6268445 | Q100: 4.571867945
A101: 83 | B101: 17.32933433 | C101: 10.93333433 | D101: 70.58738383 | E101: 64.75023876 | F101: 4.989912215 | G101: 1.754790032 | L101: 6.167394939 | M101: 8.448485848 | N101: 104.4468399 | O101: 75.03112079 | P101: 11.6268445 | Q101: 4.571867945
A102: 84 | B102: 17.54066767 | C102: 11.06666767 | D102: 75.28365714 | E102: 64.75023876 | F102: 4.989912215 | G102: 1.754790032 | L102: 6.242607061 | M102: 8.551516152 | N102: 111.0978 | O102: 75.03112079 | P102: 11.6268445 | Q102: 4.571867945
A103: 85 | B103: 17.752001 | C103: 11.200001 | D103: 80.60610053 | E103: 64.75023876 | F103: 4.989912215 | G103: 1.754790032 | L103: 6.317819182 | M103: 8.654546455 | N103: 118.6355555 | O103: 75.03112079 | P103: 11.6268445 | Q103: 4.571867945
A104: 86 | B104: 17.96333433 | C104: 11.33333433 | D104: 86.68889339 | E104: 64.75023876 | F104: 4.989912215 | G104: 1.754790032 | L104: 6.393031303 | M104: 8.757576758 | N104: 127.2501339 | O104: 75.03112079 | P104: 11.6268445 | Q104: 4.571867945
A105: 87 | B105: 18.17466767 | C105: 11.46666767 | D105: 93.70750107 | E105: 64.75023876 | F105: 4.989912215 | G105: 1.754790032 | L105: 6.468243424 | M105: 8.860607061 | N105: 137.190033 | O105: 75.03112079 | P105: 11.6268445 | Q105: 4.571867945
A106: 88 | B106: 18.386001 | C106: 11.600001 | D106: 101.8958774 | E106: 64.75023876 | F106: 4.989912215 | G106: 1.754790032 | L106: 6.543455545 | M106: 8.963637364 | N106: 148.7865834 | O106: 75.03112079 | P106: 11.6268445 | Q106: 4.571867945
A107: 89 | B107: 18.59733433 | C107: 11.73333433 | D107: 111.5730505 | E107: 64.75023876 | F107: 4.989912215 | G107: 1.754790032 | L107: 6.618667667 | M107: 9.066667667 | N107: 162.4915993 | O107: 75.03112079 | P107: 11.6268445 | Q107: 4.571867945
A108: 90 | B108: 18.80866767 | C108: 11.86666767 | D108: 123.1856597 | E108: 64.75023876 | F108: 4.989912215 | G108: 1.754790032 | L108: 6.693879788 | M108: 9.16969797 | N108: 178.9376211 | O108: 75.03112079 | P108: 11.6268445 | Q108: 4.571867945
A109: 91 | B109: 19.020001 | C109: 12.000001 | D109: 137.3788508 | E109: 64.75023876 | F109: 4.989912215 | G109: 1.754790032 | L109: 6.769091909 | M109: 9.272728273 | N109: 199.0383182 | O109: 75.03112079 | P109: 11.6268445 | Q109: 4.571867945
A110: 92 | B110: 19.23133433 | C110: 12.13333433 | D110: 155.120343 | E110: 64.75023876 | F110: 4.989912215 | G110: 1.754790032 | L110: 6.84430403 | M110: 9.375758576 | N110: 224.1641958 | O110: 75.03112079 | P110: 11.6268445 | Q110: 4.571867945
A111: 93 | B111: 19.44266767 | C111: 12.26666767 | D111: 177.9308384 | E111: 64.75023876 | F111: 4.989912215 | G111: 1.754790032 | L111: 6.919516152 | M111: 9.478788879 | N111: 256.4689055 | O111: 75.03112079 | P111: 11.6268445 | Q111: 4.571867945
A112: 94 | B112: 19.654001 | C112: 12.400001 | D112: 208.3448418 | E112: 64.75023876 | F112: 4.989912215 | G112: 1.754790032 | L112: 6.994728273 | M112: 9.581819182 | N112: 299.5418692 | O112: 75.03112079 | P112: 11.6268445 | Q112: 4.571867945
A113: 95 | B113: 19.86533433 | C113: 12.53333433 | D113: 250.9244648 | E113: 64.75023876 | F113: 4.989912215 | G113: 1.754790032 | L113: 7.069940394 | M113: 9.684849485 | N113: 359.8440519 | O113: 75.03112079 | P113: 11.6268445 | Q113: 4.571867945
A114: 96 | B114: 20.07666767 | C114: 12.66666767 | D114: 314.7939392 | E114: 64.75023876 | F114: 4.989912215 | G114: 1.754790032 | L114: 7.145152515 | M114: 9.787879788 | N114: 450.2973989 | O114: 75.03112079 | P114: 11.6268445 | Q114: 4.571867945
A115: 97 | B115: 20.288001 | C115: 12.800001 | D115: 421.2431697 | E115: =IF(D115>$G$13,IF(D115<$G$14,D115,$G$14),$G$13) -> 64.75023876 | F115: 4.989912215 | G115: 1.754790032 | L115: 7.220364636 | M115: 9.890910091 | N115: 601.0531725 | O115: 75.03112079 | P115: 11.6268445 | Q115: 4.571867945
A116: 98 | B116: 20.49933433 | C116: 12.93333433 | D116: 634.1420298 | E116: 64.75023876 | F116: 4.989912215 | G116: 1.754790032 | L116: 7.295576758 | M116: 9.993940394 | N116: 902.5654513 | O116: 75.03112079 | P116: 11.6268445 | Q116: 4.571867945
A117: 99 | B117: 20.71066767 | C117: 13.06666767 | D117: 1272.841804 | E117: 64.75023876 | F117: 4.989912215 | G117: 0 | L117: 7.370788879 | M117: 10.0969707 | N117: 1807.108141 | O117: 75.03112079 | P117: 11.6268445 | Q117: 0
A118: 100 | B118: 20.922001 | C118: 13.200001 | D118: -170318029.2 | E118: =E117 -> 64.75023876 | F118: 4.989912215 | G118: 0 | L118: 7.446001 | M118: 10.200001 | N118: -186387897.9 | O118: 9.756329679 | P118: 11.6268445 | Q118: 0

Sheet Scratchpad

Sheet specs (hidden)
A1: KEY | B1: 0
B3: V | C3: CURRENT | F3: FULL DS
B4: T | C4: CURRENT | F4: FULL DS
B5: SD | C5: CURRENT | F5: FULL DS
B7: Spec | C7: Min | D7: Typ | E7: Max | F7: Min | G7: Typ | H7: Max
B10: UV threshold | C10: =IF($B$1=$R$6,F10,IF($B$1=$R$7,I10,IF($B$1=$R$8,K10,IF($B$1=$R$9,M10,Q10)))) -> 0.99 | D10: =IF(G10="","",G10) -> 1 | E10: =IF($B$1=$R$6,H10,IF($B$1=$R$7,J10,IF($B$1=$R$8,L10,IF($B$1=$R$9,N10,Q10)))) -> 1.01 | F10: 0.99 | G10: 1 | H10: 1.01 | I10: V
B11: UV lkg | D11: =IF(G11="","",G11) ->  | E11: =H11 -> 50 | H11: 50 | I11: nA
B12: UV hyst | C12: =IF($B$1=$R$6,F12,IF($B$1=$R$7,I12,IF($B$1=$R$8,K12,IF($B$1=$R$9,M12,Q12)))) -> 40 | D12: 60 | E12: =IF($B$1=$R$6,H12,IF($B$1=$R$7,J12,IF($B$1=$R$8,L12,IF($B$1=$R$9,N12,Q12)))) -> 75 | F12: 40 | G12: 60 | H12: 75 | I12: mV
B13: OV threshold | C13: 0.99 | D13: 1 | E13: 1.01 | F13: 0.99 | G13: 1 | H13: 1.01 | I13: V
B14: OV lkg | E14: =H14 -> 50 | H14: 50 | I14: nA
B15: OV hyst | C15: 40 | D15: 60 | E15: 75 | F15: 40 | G15: 60 | H15: 75 | I15: mV
B16: Sense I | E16: =H16 -> 150 | H16: 150 | I16: uA
B17: Sense imbalance | E17: =H17 -> 8 | H17: 8 | I17: uA
B18: VCAP | C18: 2.68 | D18: 2.7 | E18: 2.72 | F18: 2.68 | G18: 2.7 | H18: 2.72 | I18: V
B19: Iset Lkg | E19: =H19 -> 100 | H19: 100 | I19: nA
B20: Gate current | C20: 20 | D20: 25 | E20: 30 | F20: 20 | G20: 25 | H20: 30 | I20: uA
B21: Vsense tolerance | E21: 0.25 | H21: 0.25 | I21: mV
B22: Vsesne tol foldback | E22: 0.4 | H22: 0.4 | I22: mV
B23: Vcbos | C23: 0.5 | D23: 0.88 | E23: 1.12 | F23: 0.5 | G23: 0.88 | H23: 1.12 | I23: mV
B24: Vsoc @ 5mV | C24: 9.5 | D24: 11.25 | E24: 13 | F24: 9.5 | G24: 11.25 | H24: 13 | I24: mV
B25: SS current | C25: =F25 -> 8 | D25: =G25 -> 10 | E25: 12 | F25: 8 | G25: 10 | H25: 12 | I25: uA
B26: SS start level | C26: =F26 -> 0.5 | D26: 1.25 | E26: 1.8 | F26: 0.5 | G26: 1.25 | H26: 1.8 | I26: mV
B27: Timer current up | C27: 57 | D27: 60 | E27: 63 | F27: 57 | G27: 60 | H27: 63 | I27: uA
B28: Timer V | C28: 0.98 | D28: 1 | E28: 1.02 | F28: 0.98 | G28: 1 | H28: 1.02 | I28: V
B29: Timer down | C29: 1.7 | D29: 2 | E29: 2.3 | F29: 1.7 | G29: 2 | H29: 2.3 | I29: uA
B30: Timer V low | C30: 0.18 | D30: 0.2 | E30: 0.22 | F30: 0.18 | G30: 0.2 | H30: 0.22 | I30: V
B31: Timer POR up | C31: 2 | D31: 3 | E31: 4 | F31: 2 | G31: 3 | H31: 4 | I31: uA
B32: PWRGD IN threshold | C32: 0.99 | D32: 1 | E32: 1.01 | F32: 0.99 | G32: 1 | H32: 1.01 | I32: V
B33: P input current | E33: =H33 -> 50 | H33: 50 | I33: nA
B34: P hyst current | C34: 0.0001 | D34: 0.0001 | E34: 0.0001 | F34: 0.0001 | G34: 0.0001 | H34: 0.0001 | I34: uA
B35: P hyst Voltage (internal) | C35: 40 | D35: 60 | E35: 75 | F35: 40 | G35: 60 | H35: 75 | I35: mV
B36: I clamp | C36: 1.6 | D36: 2 | E36: 2.4 | F36: 1.6 | G36: 2 | H36: 2.4 | I36: mV
B37: Plim input current | E37: =H37 -> 100 | H37: 100 | I37: nA
B38: pset limit threshold | C38: 1.45 | D38: 1.5 | E38: 1.55 | F38: 1.45 | G38: 1.5 | H38: 1.55 | I38: V

Sheet Revision History (hidden)
C6: Rev | D6: Comments | E6: Date
C8: 1 | D8: Initial beta tool - convert from ADM1275/6 | E8: 2013-09-30
C9: 1.1 | D9: blank 20mV iset and add tolerance to istart. Add warning to clamp ISTART | E9: 2014-04-30
C10: 2 | D10: Web release. Reconfigured all resistor calculation to auto populate. Tool tidy up. Add comments. Add error flags. Optimized for dvdt only. Add BOM and Sch. Add PLIM tol, | E10: 2014-08-29
C11: 2.1 | D11: gcm: added macros, toolOpen, toolClose, standard locking, row show/hide, etc.
C12: 2.2 | D12: cell D312 error. 18 to be D25. Also add overide for R2 on strings for checking existing designs. Corrrected istart clamp tolerance issue and roverride | E12: 2014-01-22
C13: 2.5 | D13: Corrrected istart clamp tolerance issue and roverride. Fixed bugs on timer / SOA when PLIM limits reached. Added VCAP current strings | E13: 2015-01-27
C14: 2.6 | D14: add show hide macro | E14: 2015-02-16
C15: 2.7 | D15: improved wanrings and error handling for PLIM and ISTART | E15: 2015-02-19
C16: 2.8 | D16: minor tweaks to istart/pset. Include startup diagrams | E16: 2015-02-20
C17: 2.9 | D17: Clean out all FC macros etc.Create hide/show RC macros | E17: 2015-02-24
C18: 2.95 | D18: add tolerance to plots | E18: 2015-02-25
C19: 2.96 | D19: clean up istart and add offsets. Clean up inrush calc and remove sim data. Add tolerancing options from 4sig and reduced temp | E19: 2015-03-11
C20: 2.97 | D20: improve startup SOA to reflect more accurate profiles (currents not energy). Add Roverride warnings. Correct startup plot x axis timebase. | E20: 2015-04-27
C21: 2.98 | D21: powerup soa… add % Vds input. | E21: 2015-05-05
C22: 2.99 | D22: editable SOA times | E22: 2015-11-10
C23: 3 | D23: add more details around FET transconductance and starup in to short SOA | E23: 2019-11-04

Sheet Variables (hidden)
A2: revtool | B2: =MAX('Revision History'!C8:C54) -> 3
A3: revname | B3: ADM1281 Hot Swap Designer
A4: revlink | B4: 0
A5: revtext | B5: ADM1281
A6: revDB | B6: 0
